Cogmind - Beta 10.1 @@@ ROGUE MODE // 2020.10.24 @ 22:49:40 Player: RIFlooplessEOverride Result: Heading to fleet! Performance ------------- Evolutions (9) 4500 Regions Visited (36) 7200 Robots Destroyed (506) 2530 Value Destroyed (31240) 31240 Prototype IDs (103) 2060 Alien Tech Used (18) 3600 Bonus (53726) 53726 TOTAL SCORE: 104856 Bonus ------- High Alert Combat Kills 4324 Follower Combat Kills 3179 Entered Garrisons 1800 Used RIF Installer 4500 Network Hubs Disabled 200 Built Enhanced Grunts 300 A7 Reached Mainframe 300 Met R17 at Cetus 500 Used Core Reset Matrix 3000 Destroyed MAIN.C Guards 500 Met MAIN.C 5000 Hacked MAIN.C 300 Destroyed MAIN.C Shell 5000 Destroyed MAIN.C 10000 Met Architect 300 Destroyed A8 300 Destroyed A6 400 Destroyed A5 500 Destroyed A4 700 Destroyed A3 800 Destroyed A2 1000 Destroyed Architect 15000 Win 3000 Friendly Fire -7177 Cogmind --------- Core Integrity 1122/1850 Matter 300/300 Energy 475/490 System Corruption 0% Temperature Cool (12) Movement Treading (147) Location To Fleet Rendezvous Parts ------- > --- POWER (2) -------- Improved Quantum Reactor Zero-point Reactor > --- PROPULSION (4) --- Experimental Biometal Heavy Treads Advanced Heavy Siege Treads > --- UTILITY (14) ----- Desublimator Coolant Network High-capacity Storage Unit Spectral Analyzer Experimental Targeting Computer Experimental Targeting Computer Experimental Weapon Cycler Experimental Phase Shifter Centrium Heavy Armor Plating Centrium Linked Plating Experimental Powered Armor AEGIS Remote Shield > --- WEAPON (5) ------- Sigix Quantum Sheargun Sigix Quantum Sheargun Helical Railgun Helical Railgun Multirail > --- INVENTORY (12) --- Experimental Matter Compressor (500) Experimental Matter Compressor (500) Experimental Armor Integrity Analyzer Advanced Particle Accelerator Experimental Powered Armor AEGIS Remote Shield Sigix Quantum Sheargun Enhanced Nova Cannon Enhanced Nova Cannon Improved Heavy Machine Gun Multirail Peak State ------------ > --- POWER ------------ Vortex Chain Reactor > --- PROPULSION ------- Biometal Heavy Treads Experimental Biometal Heavy Treads > --- UTILITY ---------- Desublimator High-capacity Storage Unit High-capacity Storage Unit High-capacity Storage Unit High-capacity Storage Unit High-capacity Storage Unit Experimental Targeting Computer Experimental Target Analyzer Experimental Armor Integrity Analyzer Advanced Kinecellerator Experimental Phase Shifter Experimental Powered Armor Experimental Powered Armor AEGIS Remote Shield > --- WEAPON ----------- Graviton Cannon Omega Cannon Sigix Broadsword > --- INVENTORY -------- Improved Quantum Reactor Zero-point Reactor Advanced Heavy Treads Biometal Heavy Treads Experimental Biometal Heavy Treads Advanced Heavy Siege Treads Experimental Coolant Injector Experimental Energy Well Experimental Matter Compressor Experimental Matter Compressor Experimental Matter Compressor Experimental Optical Array Experimental Targeting Computer Experimental Armor Integrity Analyzer Advanced Particle Accelerator Experimental Powered Armor Experimental Powered Armor Beam Splitter AEGIS Remote Shield Phase Redirector Long-range Tractor Beam Mini Drone Bay Sigix Quantum Sheargun Sigix Quantum Sheargun Sigix Quantum Sheargun Enhanced Nova Cannon Enhanced Nova Cannon Enhanced Nova Cannon Enhanced Nova Cannon Improved Heavy Machine Gun Helical Railgun Helical Railgun Helical Railgun Helical Railgun Multirail Multirail Hypercooled Linear Accelerator Graviton Cannon Graviton Cannon Graviton Cannon [Rating: 255] Favorites ----------- Power Reinforced Quantum Reactor Engine Reinforced Deuterium Engine Power Core Fission Core Reactor Reinforced Quantum Reactor Propulsion Experimental Biometal Heavy Treads Treads Experimental Biometal Heavy Treads Leg Flexi-carbon Leg Wheel Armored Wheel Utility High-capacity Storage Unit Device Advanced Shield Generator Storage High-capacity Storage Unit Processor Experimental Targeting Computer Hackware Improved Hacking Suite Protection Centrium Medium Armor Plating Artifact Matter Drive Weapon Sigix Broadsword Energy Gun Sigix Quantum Sheargun Energy Cannon Particle Cannon Ballistic Gun KE Penetrator Ballistic Cannon Light Cannon Launcher Missile Launcher Special Weapon Advanced Remote Datajack Impact Weapon Core Stripper Slashing Weapon Sigix Broadsword Special Melee Weapon Datajack Build | -11 -10 -9 -9 -9 -8 -8 -8 -8 -7 -7 -7 -7 -6 -6 -6 -6 -5 -5 -5 -5 -4 -4 -4 -4 -4 -4 -4 -4 -4 -3 -2 -2 -2 -1 -1 -1 ------- Run | Scr Mat Mat Sto Gar Mat Gar Mat Gar Fac Gar Fac Gar Fac Was Fac Gar Fac Was Fac Gar Fac Was Fac Gar Ext Cet Arc Hub Gar Res Res Qua Sec Acc Com Ac0 Slots Evolved 18 | . . 2 . . 2 . . . 2 . . . 2 . . . 2 . . . 2 . . . . . . . . 2 2 . . 2 . . Power 1 | . . . . . . . . . . . . . 1 . . . . . . . . . . . . . . . . . . . . . . . Propulsion 2 | . . . . . . . . . . . . . 1 . . . . . . . . . . . . . . . . . 1 . . . . . Utility 12 | . . 2 . . 2 . . . 2 . . . . . . . 2 . . . 2 . . . . . . . . 2 . . . . . . Weapon 3 | . . . . . . . . . . . . . . . . . . . . . . . . . . . . . . . 1 . . 2 . . Parts Attached 726 | 7 13 10 3 2 18 . 20 4 10 10 . 12 14 12 20 23 9 7 4 2 13 12 2 20 13 7 4 5 28 91 28 62 62 12 82 85 Power 33 | 1 . 1 1 . 2 . . 1 . . . . 2 2 1 2 2 . . . . 1 . . . . . . . 1 2 6 4 . 1 3 Engine 10 | 1 . 1 1 . 2 . . 1 . . . . 2 . . 2 . . . . . . . . . . . . . . . . . . . . Core 1 | . . . . . . . . . . . . . . . 1 . . . . . . . . . . . . . . . . . . . . . Reactor 22 | . . . . . . . . . . . . . . 2 . . 2 . . . . 1 . . . . . . . 1 2 6 4 . 1 3 Propulsion 71 | 2 3 2 . 2 5 . 2 . . 2 . . 3 3 8 1 3 . 1 . . 1 . 2 . 1 . . 6 5 3 5 2 . 3 6 Treads 48 | 2 1 2 . . 5 . . . . 2 . . . 3 4 1 . . . . . . . 2 . 1 . . 2 4 3 5 2 . 3 6 Leg 1 | . . . . . . . . . . . . . . . . . . . . . . . . . . . . . 1 . . . . . . . Wheel 22 | . 2 . . 2 . . 2 . . . . . 3 . 4 . 3 . 1 . . 1 . . . . . . 3 1 . . . . . . Hover . | . . . . . . . . . . . . . . . . . . . . . . . . . . . . . . . . . . . . . Flight . | . . . . . . . . . . . . . . . . . . . . . . . . . . . . . . . . . . . . . Utility 349 | 2 6 5 . . 6 . 5 1 5 1 . 8 6 4 9 14 3 1 . . 9 5 2 9 5 4 2 3 14 36 10 33 40 9 42 50 Device 188 | 1 1 1 . . 3 . 2 . 4 1 . 3 5 2 6 7 1 . . . 6 4 2 7 1 . 2 1 8 16 5 19 22 5 23 30 Storage 39 | . 3 1 . . 1 . . . . . . 3 . 1 . 1 . . . . 1 . . . 1 1 . . 1 1 2 8 4 . 9 1 Processor 19 | 1 1 . . . . . . . . . . . . . . . 1 . . . . . . . 1 . . . . 2 . . 3 1 4 5 Hackware 27 | . . . . . . . . . . . . . 1 . 1 4 1 . . . 1 1 . 1 2 . . 1 3 6 1 1 1 2 . . Protection 69 | . 1 3 . . 2 . 3 1 1 . . 2 . 1 2 2 . 1 . . 1 . . 1 . 3 . 1 2 11 2 4 6 . 6 13 Artifact 7 | . . . . . . . . . . . . . . . . . . . . . . . . . . . . . . . . 1 4 1 . 1 Weapon 273 | 2 4 2 2 . 5 . 13 2 5 7 . 4 3 3 2 6 1 6 3 2 4 5 . 9 8 2 2 2 8 49 13 18 16 3 36 26 Energy Gun 28 | . . . . . . . 2 . . . . . . . . . . 1 . . . 1 . 1 1 1 . . . 4 . . 3 . 5 9 Energy Cannon 49 | . . 2 2 . 5 . 4 . 2 4 . . 2 . . . . . . . . . . . 1 . . . . 5 . 3 7 2 9 1 Ballistic Gun 61 | 2 1 . . . . . 2 1 . 1 . 2 . . 1 . . 1 1 . 1 . . 2 3 . 2 1 6 10 5 2 1 . 11 5 Ballistic Cannon 29 | . 2 . . . . . . . . . . . . . . . . . . . . . . 2 . . . . . . . 5 4 . 5 11 Launcher 35 | . . . . . . . 5 1 1 2 . 2 . . . 3 1 1 . 1 . . . 2 . . . . . 8 3 1 1 1 2 . Special Weapon 24 | . 1 . . . . . . . . . . . . . . . . 1 . . 2 1 . 2 . . . . . 12 2 1 . . 2 . Impact Weapon 1 | . . . . . . . . . . . . . . . . . . . . . . . . . . . . . . . . 1 . . . . Slashing Weapon 35 | . . . . . . . . . 2 . . . . 2 1 3 . 2 1 . . 1 . . 3 1 . 1 1 7 3 5 . . 2 . Piercing Weapon . | . . . . . . . . . . . . . . . . . . . . . . . . . . . . . . . . . . . . . Special Melee Weapon 11 | . . . . . . . . . . . . . 1 1 . . . . 1 1 1 2 . . . . . . 1 3 . . . . . . Unidentified Prototypes 55 | . . . 1 . . . . . . . . . . . . . . . . . . . 1 . . 3 . 1 . 3 . 16 9 . 9 12 Parts Lost 61 | . 1 . . . 2 . 2 3 1 6 1 3 3 . 2 4 . . . . 1 . . 1 1 . . . 2 11 8 1 1 . 2 5 Power 4 | . . . . . . . . 1 . . . . 1 . . . . . . . . . . . . . . . . . 2 . . . . . Propulsion 9 | . . . . . . . . . . 1 . . . . . . . . . . . . . . . . . . 2 4 1 . . . . 1 Utility 31 | . . . . . 1 . 1 1 . 2 1 3 1 . 2 4 . . . . 1 . . 1 1 . . . . 5 2 1 1 . 1 2 Weapon 17 | . 1 . . . 1 . 1 1 1 3 . . 1 . . . . . . . . . . . . . . . . 2 3 . . . 1 2 Highest Loss Streak 7 | . 1 . . . 1 . 1 3 1 3 1 3 2 . 2 2 . . . . 1 . . 1 1 . . . 1 3 7 1 1 . 1 3 Average Slot Usage (%) 86 | . 99 99 100 100 99 100 99 97 96 93 91 86 94 82 83 91 94 95 83 82 81 77 82 82 83 92 93 93 92 92 87 85 75 78 77 83 Engine 1 | . 14 11 11 11 9 9 9 7 7 7 7 7 11 11 2 1 4 . . . . . . . . . . . . . . . . . . . Reactor 5 | . . . . . . . . . . . . . . 1 6 4 1 11 11 11 9 6 10 10 10 10 10 10 10 8 7 7 5 8 4 5 Treads 8 | . 19 12 22 9 10 18 13 . . 2 15 15 . 12 7 13 10 . . . . . . 7 10 10 10 10 8 6 7 8 8 8 7 8 Wheel 2 | . 8 9 . 12 7 . 4 18 15 12 . . 19 1 4 . 1 17 12 11 10 10 10 2 . . . . . 3 . . . . . . Device 11 | . 6 9 11 11 17 18 18 9 17 19 23 10 22 9 8 16 11 8 5 5 12 13 13 16 5 10 10 16 11 5 3 12 10 14 12 16 Storage 22 | . 10 13 22 22 18 18 18 18 15 15 15 28 24 20 20 20 17 17 17 17 20 21 21 21 21 22 26 26 30 28 26 28 28 22 23 12 Processor 2 | . 6 . . . . . . . . . . . . . . . 5 2 . . . . . . . 3 . . . 4 1 . . 3 6 11 Hackware 8 | . . . . . . . . . . . . . . 6 6 4 23 20 17 17 11 10 10 8 19 10 10 12 12 20 27 14 8 4 . . Protection 7 | . 4 21 11 11 17 18 16 25 24 21 14 7 4 4 6 9 . 2 5 5 5 5 5 5 5 13 14 5 6 3 . 3 5 4 5 12 Energy Cannon 2 | . . 5 22 22 17 18 11 . 4 5 7 7 10 6 4 . . . . . . . . . . 5 . . . . . 2 . 6 1 . Ballistic Gun 4 | . 10 . . . . . 2 18 5 . 7 6 . . 1 6 . . . . . . . 3 6 . 9 9 9 1 2 . . . 8 8 Ballistic Cannon 1 | . 17 16 . . . . . . . . . . . . . . . . . . . . . 2 3 . . . . . . . . . . 1 Slashing Weapon 2 | . . . . . . . . . . . . . . 3 6 5 5 3 4 5 5 4 5 1 . 1 . . . 2 2 2 4 4 3 1 Naked Turns . | . . . . . . . . . . . . . . . . . . . . . . . . . . . . . . . . . . . . . Heaviest Build 336 | 10 48 90 90 90 109 108 112 101 108 105 99 126 145 180 182 154 168 211 211 211 249 250 251 263 257 260 260 289 287 313 249 302 298 306 336 326 Greatest Support 190 | 40 40 40 40 40 42 42 42 24 33 51 51 51 63 119 100 101 92 45 49 49 49 49 56 116 100 110 110 110 110 115 150 150 170 170 190 177 Greatest Overweight (x) 85 | 1 1 4 2 3 4 2 4 4 4 3 1 2 4 1 4 46 3 4 4 4 5 6 6 4 2 2 85 2 7 31 1 4 2 1 3 2 Average Overweight (x) 2 | . . 2 2 2 2 2 2 3 3 2 1 1 2 . 2 3 1 3 4 4 4 4 5 2 2 2 14 2 2 3 1 1 1 1 1 . Largest Inventory Capacity 52 | 4 12 20 20 20 20 20 20 20 20 20 20 32 32 28 28 28 28 28 28 28 36 36 36 36 36 44 44 44 52 52 52 52 52 52 52 44 Average Capacity 37 | 4 7 13 20 20 20 20 20 20 20 20 20 24 29 27 28 28 28 28 28 28 35 36 36 36 36 37 44 44 50 52 52 51 52 49 50 27 Most Carried 52 | 4 12 16 18 20 20 20 20 18 18 17 12 17 22 27 28 28 27 28 27 28 33 36 36 36 36 38 43 44 47 52 47 52 52 44 52 44 Average Carried 34 | 1 6 10 15 17 19 20 19 17 16 15 12 14 18 24 26 27 26 24 26 27 30 28 34 35 35 36 42 43 44 46 43 49 50 39 43 25 Final Capacity 52 | 4 12 20 20 20 20 20 20 20 20 20 20 32 26 28 28 28 28 28 28 28 36 36 36 36 36 44 44 44 52 52 52 52 52 44 44 12 Final Carried 48 | 4 10 13 18 17 20 20 18 17 17 12 12 17 20 25 27 28 26 25 27 28 30 35 36 36 35 38 43 41 46 45 42 48 44 38 44 11 Class Distribution -------------------- 36% | Hauler-Mutant 34% | Botlord-Mutant 9% | Alien-Tank 7% | Bothacker-Mutant 4% | Mutant 3% | Alien-Gunner Dominant Class ---------------- Mutant | -10/Materials Mutant | -9/Materials Hauler-Mutant | -9/Storage Hauler-Mutant | -9/Garrison Hauler-Mutant | -8/Materials Hauler-Mutant | -8/Garrison Hauler-Mutant | -8/Materials Hauler-Mutant | -8/Garrison Hauler-Mutant | -7/Factory Hauler-Mutant | -7/Garrison Hauler-Mutant | -7/Factory Hauler-Mutant | -7/Garrison Hauler-Mutant | -6/Factory Hauler-Mutant | -6/Waste Hauler-Mutant | -6/Factory Hauler-Mutant | -6/Garrison Bothacker-Mutant | -5/Factory Bothacker-Mutant | -5/Waste Bothacker-Mutant | -5/Factory Bothacker-Mutant | -5/Garrison Botlord-Mutant | -4/Factory Bothacker-Mutant | -4/Waste Bothacker-Mutant | -4/Factory Botlord-Mutant | -4/Garrison Botlord-Mutant | -4/Extension Botlord-Mutant | -4/Cetus Botlord-Mutant | -4/Archives Botlord-Mutant | -4/Hub_04(d) Botlord-Mutant | -4/Garrison Botlord-Mutant | -3/Research Botlord-Mutant | -2/Research Botlord-Mutant | -2/Quarantine Hauler-Mutant | -2/Section 7 Hauler-Mutant | -1/Access Alien-Tank | -1/Command Alien-Tank | -1/Access_0 Resources | -11 -10 -9 -9 -9 -8 -8 -8 -8 -7 -7 -7 -7 -6 -6 -6 -6 -5 -5 -5 -5 -4 -4 -4 -4 -4 -4 -4 -4 -4 -3 -2 -2 -2 -1 -1 -1 ----------- Run | Scr Mat Mat Sto Gar Mat Gar Mat Gar Fac Gar Fac Gar Fac Was Fac Gar Fac Was Fac Gar Fac Was Fac Gar Ext Cet Arc Hub Gar Res Res Qua Sec Acc Com Ac0 Matter Collected 20409 | 354 490 288 195 181 195 10 313 225 98 296 . 429 105 120 239 525 19 291 . 125 100 220 14 766 313 110 176 50 854 1966 501 2104 767 62 4614 3294 Remotely 1418 | . . . . . . . . . . . . 56 . . . . . . . . . . . 348 . . . . . 128 264 . . . 396 226 Salvage Created 29839 | 184 693 404 176 40 606 223 950 440 180 498 . 795 224 256 817 665 19 815 161 440 511 504 . 324 421 20 233 186 1148 3615 1099 1587 3403 666 3397 4139 Parts 1467 | 16 35 29 12 1 40 13 54 16 4 28 . 40 4 4 50 32 2 26 7 21 28 8 . 13 12 6 19 8 54 188 50 106 151 26 115 249 Haulers Intercepted 11 | . 2 2 . . . . 4 . . . . . . . . . . . . . . . . . 1 . . . . . . . 2 . . . Recyclers Shooed 14 | . 2 . . . . . 2 . . . . . . . 1 . . . . . 1 . . . 1 . . . . 2 . . . 1 4 . Parts Field Recycled . | . . . . . . . . . . . . . . . . . . . . . . . . . . . . . . . . . . . . . Retrieved Matter . | . . . . . . . . . . . . . . . . . . . . . . . . . . . . . . . . . . . . . Parts Self-Destructed . | . . . . . . . . . . . . . . . . . . . . . . . . . . . . . . . . . . . . . Prevented . | . . . . . . . . . . . . . . . . . . . . . . . . . . . . . . . . . . . . . Kills | -11 -10 -9 -9 -9 -8 -8 -8 -8 -7 -7 -7 -7 -6 -6 -6 -6 -5 -5 -5 -5 -4 -4 -4 -4 -4 -4 -4 -4 -4 -3 -2 -2 -2 -1 -1 -1 ------- Run | Scr Mat Mat Sto Gar Mat Gar Mat Gar Fac Gar Fac Gar Fac Was Fac Gar Fac Was Fac Gar Fac Was Fac Gar Ext Cet Arc Hub Gar Res Res Qua Sec Acc Com Ac0 Combat Hostiles Destroyed 414 | . 16 15 2 1 11 7 22 9 4 19 . 21 1 1 13 19 . . 3 7 8 2 . 9 1 . . 3 16 41 13 19 39 9 39 44 Melee 60 | . . . . . . . . . . . . . . . 10 . . . 1 5 6 2 . 1 . . . . . 11 1 . 22 . 1 . Guns 119 | . 13 . . . . . 5 6 . . . 4 . . . 12 . . . . 2 . . 1 . . . 3 16 9 2 2 1 . 4 39 Cannons 87 | . 3 15 2 1 10 7 8 . 1 3 . 4 1 1 3 . . . . . . . . 2 1 . . . . 1 . 5 2 5 7 5 AOE 101 | . . . . . . . 9 3 2 16 . 13 . . . 7 . . 2 2 . . . 5 . . . . . 7 5 . 2 3 25 . Classes Destroyed 22 | 2 4 2 1 . . 1 1 . . 2 . . . 1 1 . . 2 . . . . . 1 . . . . . . 1 1 1 . 1 . Worker 17 | . 1 . . . . . . . . . . . 1 . 1 . . . . . 1 . . . . . . . . 4 . . . . 9 . Builder 7 | . . . . . . . . . . . . . . . 1 . . . . . . . . . . . . . . 3 1 . 1 1 . . Tunneler 8 | 5 1 . . . . . . . . . . . . . . . 1 . . . . . . . . . . . . 1 . . . . . . Hauler 11 | . 2 2 . . . . 4 . . . . . . . . . . . . . . . . . 1 . . . . . . . 2 . . . Recycler 13 | 1 2 1 1 . . . . . . . . . 1 . 1 . . . . . . . . . . . . . . 1 . . . . 5 . Operator 13 | . . . 1 . 1 . . . . . . . . . 3 . . . . . . . . . . . 7 . . . . . . . 1 . Watcher 3 | . . 1 . . 1 . . . . . . . . . . . . . . . . . . . . . . . . . . . 1 . . . Swarmer 86 | . 9 8 . . . 4 5 . . 7 . 16 . . 6 12 . . . 3 1 . . 1 . . . . 6 . 1 . 2 . 5 . Grunt 107 | . 7 5 1 1 3 2 8 5 3 9 . 3 . . 1 5 . . . 2 2 . . . . . . 2 9 11 7 2 13 2 4 . Brawler 7 | . . . . . . 1 . . . 1 . 1 . . . . . . . . . . . . . . . . . 1 2 . . 1 . . Duelist 3 | . . . . . . . . . . 1 . . . . . . . . . . 1 . . . . . . . . 1 . . . . . . Protector 2 | . . . . . . . . . . . . . . . . . . . . . . . . . . . . . . . 1 . . . 1 . Sentry 55 | . . 2 1 . 8 . 6 4 1 . . . 1 . 3 1 . . 1 3 2 . . . . . . 1 2 5 . 1 7 4 2 . Specialist 1 | . . . . . . . . . . . . . . . . . . . . . . . . . . . . . . . . . . . 1 . Hunter 35 | . . . . . . . 3 . . . . . . . 1 . . . 2 . . . . 6 . . . . . 10 . . 2 . 11 . Programmer 46 | . . . . . . . . . . 1 . 1 . . 2 1 . . . 1 2 . . 1 . . . . . 13 2 4 9 2 7 . Behemoth 4 | . . . . . . . . . . . . . . . . . . . . . . . . 1 1 . . . . . . . . . 2 . Compactor 3 | . . . . . . . . . . . . . . 1 . . . . . . . 2 . . . . . . . . . . . . . . Quarantine Guard 11 | . . . . . . . . . . . . . . . . . . . . . . . . . . . . . . . . 11 . . . . S7 Guard 2 | . . . . . . . . . . . . . . . . . . . . . . . . . . . . . . . . . 2 . . . M Guard 2 | . . . . . . . . . . . . . . . . . . . . . . . . . . . . . . . . . . . 2 . Enhanced Grunt 28 | . . . . . . . . . . . . . . . . . . . . . . . . . . . . . . . . . . . . 28 Enhanced Sentry 1 | . . . . . . . . . . . . . . . . . . . . . . . . . . . . . . . . . . . . 1 Enhanced Hunter 8 | . . . . . . . . . . . . . . . . . . . . . . . . . . . . . . . . . . . . 8 Combat Programmer 2 | . . . . . . . . . . . . . . . . . . . . . . . . . . . . . . . . . . . 2 . Executioner 4 | . . . . . . . . . . . . . . . . . . . . . . . . . . . . . . . . . 4 . . . Fortress 1 | . . . . . . . . . . . . . . . . . . . . . . . . . . . . . . . . 1 . . . . Surgeon 2 | . . . . . . . . . . . . . . . . . . 2 . . . . . . . . . . . . . . . . . . Thug 10 | . . . . . . . . . . . . . . . . . . 6 . . . . . . 4 . . . . . . . . . . . Butcher 2 | . . . . . . . . . . . . . . . . . . 2 . . . . . . . . . . . . . . . . . . Martyr 2 | . . . . . . . . . . . . . . . . . . 2 . . . . . . . . . . . . . . . . . . Best Kill Streak 11 | 4 7 6 1 1 4 7 7 4 2 11 . 8 1 1 3 3 1 . 2 3 2 1 . 3 1 . 7 2 8 9 6 3 8 4 10 4 Combat Bots Only 11 | . 6 4 1 1 4 7 6 4 2 11 . 8 1 1 3 3 . . 2 3 2 1 . 3 1 . . 2 8 7 6 3 8 3 8 4 Max Kills in Single Turn 4 | 1 2 1 1 1 1 2 2 3 2 3 . 4 1 1 1 2 1 1 1 1 1 1 . 1 1 1 1 1 2 2 3 1 1 2 4 2 Gunslinging 1 | . 1 . . . . . . 1 . . . . . . . . . . . . . . . . . . . . . 1 . . . . . 1 Exploded 4 | . . . . . . . 2 3 2 3 . 4 . . . 2 . . 1 1 . . . 1 . . . . . 1 3 . 1 2 4 . Melee 1 | . . . . . . . . . . . . . . . 1 . . . 1 1 1 1 . 1 . . . . . 1 1 . 1 . 1 . Uniques/NPCs Destroyed 10 | . . . . . . . . . . . . . . . . . . . . . . . . . . 1 . . . . . . . . 2 7 Revision 17 (-4/Cetus) MAIN.C Shell (-1/Command) MAIN.C (-1/Command) A6 (-1/Access_0) A8 (-1/Access_0) A5 (-1/Access_0) A4 (-1/Access_0) A2 (-1/Access_0) Architect (-1/Access_0) A3 (-1/Access_0) Combat | -11 -10 -9 -9 -9 -8 -8 -8 -8 -7 -7 -7 -7 -6 -6 -6 -6 -5 -5 -5 -5 -4 -4 -4 -4 -4 -4 -4 -4 -4 -3 -2 -2 -2 -1 -1 -1 -------- Run | Scr Mat Mat Sto Gar Mat Gar Mat Gar Fac Gar Fac Gar Fac Was Fac Gar Fac Was Fac Gar Fac Was Fac Gar Ext Cet Arc Hub Gar Res Res Qua Sec Acc Com Ac0 Damage Taken 39886 | . 573 741 140 102 558 330 841 731 195 751 84 633 167 . 2158 1046 . 27 221 119 1546 . 148 1656 566 78 41 192 1906 6345 2671 1717 2773 276 3583 6971 Core 3016 | . 112 24 24 26 42 16 88 96 38 64 10 84 37 . 198 96 . 27 45 19 128 . . 44 51 . . 13 135 429 218 86 83 13 267 503 Absorbed by Shields 17257 | . . . . . 139 . 126 . 75 112 34 56 . . 40 387 . . . . 581 . 50 606 203 28 15 72 712 145 82 1297 2846 293 2610 6748 Reduced by Siege Mode 1440 | . . . . . . . . . . . . . . . 3 46 . . . . . . . 73 . . . 5 231 189 213 133 167 9 125 246 Redirected to Core 27 | . . . . . . . . . . . . . . . . . . . . . . . . . . . . . . . . . . . . 27 Core Remaining (%) 69 | 100 55 . . 81 . . . 56 . . . 72 . . . 61 . . . 90 . . . . . . . . 67 67 . . 59 . . 60 Volleys Fired 1513 | 14 62 57 12 6 38 15 52 24 17 34 . 64 16 13 20 50 . 61 3 2 12 71 . 48 14 4 20 21 40 126 26 64 93 29 112 273 Largest 5 | 2 2 2 2 2 2 2 2 2 1 1 . 2 2 1 1 1 . 1 1 1 1 1 . 2 2 1 2 2 2 2 3 3 1 2 5 5 Hottest 383 | 40 100 136 136 136 143 143 160 56 60 60 . 115 180 90 90 36 . 65 36 36 30 65 . 94 94 81 81 68 68 240 109 104 100 207 383 341 Shots Fired 2725 | 28 120 114 20 12 70 30 94 45 17 34 . 105 23 13 20 50 . 61 3 2 12 71 . 66 28 4 37 28 80 153 32 80 93 33 266 881 Gun 1590 | 28 84 . . . . . 24 43 . . . 41 . . . 42 . 50 . . 3 66 . 29 14 . 34 28 80 71 12 20 29 . 97 795 Cannon 905 | . 32 114 20 12 70 30 61 . 14 15 . 53 23 13 20 . . . . . . . . 18 14 4 3 . . 16 . 56 57 30 144 86 Launcher 163 | . . . . . . . 9 2 3 19 . 11 . . . 8 . . 3 2 . . . 13 . . . . . 41 14 4 7 3 24 . Special 67 | . 4 . . . . . . . . . . . . . . . . 11 . . 9 5 . 6 . . . . . 25 6 . . . 1 . Kinetic 1354 | 28 116 102 . . . . 8 43 . . . 41 . . . 42 . 15 . . 3 . . 43 28 . 34 28 80 61 12 27 10 . 92 541 Thermal 466 | . 4 12 20 12 70 30 77 . 3 8 . 53 23 13 20 . . . . . . . . . . . . . . 10 . . . 16 93 2 Explosive 102 | . . . . . . . 7 2 3 19 . 11 . . . 8 . . 3 2 . . . 13 . . . . . . . . 7 3 24 . Electromagnetic 340 | . . . . . . . 2 . 11 7 . . . . . . . 35 . . . 66 . 4 . 4 3 . . 57 14 53 53 14 17 . Slashing 400 | . . . . . . . . . . . . . . . . . . . . . . . . . . . . . . . . . 23 . 39 338 Robot Hit Streak 72 | 5 13 13 10 7 19 8 8 6 12 11 . 17 16 19 20 34 . 18 2 . 7 17 . 22 23 4 12 6 21 36 20 24 18 18 66 72 Robot Miss Streak 6 | 2 5 4 1 1 3 1 2 6 1 1 . 2 1 . 1 5 . 6 1 . 2 3 . 1 3 . 1 1 3 6 2 2 1 1 4 3 Penetration Max 1 | . . . . . . . . . . . . . . . . . . . . . . . . 1 1 . 1 . 1 1 1 . . . . 1 Secondary Targets 20 | . 2 . . . . . . 2 . . . . . . . . . . . . . . . . . . . . 5 1 . . . . 1 9 Max Gunslinging Chain 1 | . 1 . . . . . . 1 . . . . . . . . . . . . . . . . . . . . 1 1 . . . . 1 1 Shots Hit Robots 2460 | 17 74 69 13 8 46 18 51 29 13 26 . 77 21 14 57 50 2 92 10 16 52 67 2 57 19 2 30 8 72 176 31 69 155 26 234 757 Core Hits 1390 | 7 28 23 4 2 16 8 42 14 8 42 . 43 5 2 22 69 1 26 8 11 15 9 . 25 12 3 15 3 43 140 52 29 57 21 163 422 Critical Hits 144 | 1 . 3 . . . . . 3 . . . 3 . 1 1 . . 3 . . . 2 . 7 3 . 5 2 8 7 1 7 11 2 13 61 Critical Kills 27 | . . . . . . . . 1 . . . 2 . . 1 . . . . . . . . 1 . . 3 . 2 3 1 3 4 1 . 5 Critical Parts Destroyed 82 | 1 . 2 . . . . . 2 . . . 1 . . . . . 2 . . . 1 . 4 3 . 2 1 6 3 . 3 7 1 8 35 Melee Attacks 566 | . . . . . . . . . 2 . . . 1 1 74 15 2 41 10 18 50 13 5 8 4 . . 1 9 79 16 26 136 3 30 22 Kinetic 3 | . . . . . . . . . . . . . . . . . . . . . . . . . . . . . . . . 3 . . . . Impact . | . . . . . . . . . . . . . . . . . . . . . . . . . . . . . . . . . . . . . Slashing 527 | . . . . . . . . . 2 . . . . . 74 15 2 41 8 14 39 5 2 8 4 . . 1 7 75 16 23 136 3 30 22 Piercing . | . . . . . . . . . . . . . . . . . . . . . . . . . . . . . . . . . . . . . Sneak Attacks 123 | . . . . . . . . . . . . . 1 . 6 . 1 41 6 7 16 13 2 . 4 . . . . 16 3 . 3 . 4 . Combat Hostiles 62 | . . . . . . . . . . . . . . . . . . 11 6 3 12 13 . . . . . . . 15 2 . . . . . Follow-up Attacks . | . . . . . . . . . . . . . . . . . . . . . . . . . . . . . . . . . . . . . Damage Inflicted 107640 | 207 1023 1400 298 185 1002 444 1887 841 534 2253 . 2650 578 359 2673 2131 166 4286 868 1373 2539 454 . 1940 1267 119 786 205 2652 9269 2641 2378 13081 1885 16570 26696 Guns 33378 | 207 663 . . . . . 441 652 . . . 313 . . . 907 . 501 . . 77 100 . 526 294 . 673 205 2119 2090 400 508 835 . 3133 18734 Cannons 23676 | . 344 1370 267 185 971 444 540 . 231 303 . 1243 578 359 419 . . . . . . . . 356 340 119 86 . . 386 . 1637 1578 1051 4623 6246 Explosions 18664 | . . . . . . . 855 189 303 1950 . 1083 . . . 899 . . 220 238 . . . 967 . . . . . 3270 1756 109 926 834 5065 . Melee 30205 | . . . . . . . . . . . . . . . 2137 325 166 3785 648 1135 2462 354 . 91 483 . . . 533 3284 412 72 9742 . 3494 1082 Ramming 1717 | . 16 30 31 . 31 . 51 . . . . 11 . . 117 . . . . . . . . . 150 . 27 . . 239 73 52 . . 255 634 Kinetic 32722 | 207 1007 1258 . . . . 106 652 . . . 313 . . . 907 . 444 . . 77 . . 807 634 . 673 205 2119 1863 400 811 . . 2981 17258 Thermal 10479 | . . 112 267 185 971 444 875 . 46 165 . 1243 578 359 419 . . . . . . . . . . . . . . 631 455 . . 663 3066 . Explosive 13620 | . . . . . . . 855 189 257 1950 . 1083 . . . 899 . . 220 238 . . . 967 . . . . . 137 . . 926 834 5065 . Electromagnetic 8910 | . . . . . . . . . 231 138 . . . . . . . 57 . . . 100 . 75 . 119 86 . . 3115 1301 1515 1578 388 207 . Impact . | . . . . . . . . . . . . . . . . . . . . . . . . . . . . . . . . . . . . . Slashing 40192 | . . . . . . . . . . . . . . . 2137 325 166 3785 648 1135 2462 354 . 91 483 . . . 533 3284 412 . 10577 . 4996 8804 Piercing . | . . . . . . . . . . . . . . . . . . . . . . . . . . . . . . . . . . . . . Highest Corruption 27 | . . . . . 1 1 2 2 . . . 1 . . 3 4 . . . . . 1 . . . . . . . 27 6 7 . . . . Average Corruption 4 | . . . . . 1 1 1 2 . . . 1 . . 2 2 . . . . . 1 . . . . . . . 9 1 4 . . . . Corruption Purged 18 | . . . . . . . . . . . . 1 . . . 4 . . . . . 2 . . . . . . . . 1 10 . . . . Effects 164 | . . . . . . . 4 3 . . . . . . 21 14 . . . . . . . . . . . . . 78 2 42 . . . . Message Errors 31 | . . . . . . . 4 . . . . . . . 6 1 . . . . . . . . . . . . . 9 . 11 . . . . Matter Fused 29 | . . . . . . . . . . . . . . . 5 2 . . . . . . . . . . . . . 10 . 12 . . . . Heat Flow Errors 25 | . . . . . . . . . . . . . . . 6 4 . . . . . . . . . . . . . 11 1 3 . . . . Energy Discharges 14 | . . . . . . . . 1 . . . . . . 1 2 . . . . . . . . . . . . . 6 . 4 . . . . Parts Rejected 2 | . . . . . . . . . . . . . . . . . . . . . . . . . . . . . . 2 . . . . . . Data Loss (minor) 17 | . . . . . . . . . . . . . . . 2 2 . . . . . . . . . . . . . 10 . 3 . . . . Data Loss (major) 4 | . . . . . . . . . . . . . . . . . . . . . . . . . . . . . . 3 . 1 . . . . Misdirections 7 | . . . . . . . . . . . . . . . . . . . . . . . . . . . . . . 7 . . . . . . Targeting Errors 32 | . . . . . . . . 2 . . . . . . 1 3 . . . . . . . . . . . . . 18 1 7 . . . . Weapon Failures 3 | . . . . . . . . . . . . . . . . . . . . . . . . . . . . . . 2 . 1 . . . . Overload Shots 6 | . . . . . . . . . . . . . . . . . . . . . . . . . . . . . . 6 . . . . . . Overflow Damage 5452 | . . 30 16 . 28 32 33 52 5 30 . 114 5 . 477 21 94 505 144 203 512 . . . 2 . . . 5 427 211 7 963 96 759 681 Projectiles 834 | . . 19 . . 22 32 . . . 7 . 81 5 . 11 . . . . . . . . . . . . . . 14 . 5 . 89 81 468 Explosions 682 | . . . . . . . 33 52 5 23 . 33 . . . 4 . . 20 19 . . . . . . . . . 93 99 . 71 7 223 . Melee 3936 | . . 11 16 . 6 . . . . . . . . . 466 17 94 505 124 184 512 . . . 2 . . . 5 320 112 2 892 . 455 213 Knockbacks 92 | . 4 12 . . 1 . . . . . . . . . 2 . . . . . . . . 2 . . . . . 3 1 5 . . 8 54 Impact 20 | . . . . . 1 . . . . . . . . . 2 . . . . . . . . . . . . . . 3 1 1 . . 5 7 Kinetic 71 | . 4 12 . . . . . . . . . . . . . . . . . . . . . 2 . . . . . . . 3 . . 3 47 Secondary 1 | . . . . . . . . . . . . . . . . . . . . . . . . . . . . . . . . 1 . . . . Self-Inflicted Damage 1386 | . . . . . . . 49 . . 266 . . . . 7 . . . 58 . . . . 29 73 . . . . 182 450 45 . 88 139 . Shots 69 | . . . . . . . 2 . . 7 . . . . . . . . 3 . . . . 1 . . . . . 22 25 4 . 2 3 . Rammed 91 | . 9 5 1 . 4 . 4 . . . . 1 . . 4 . . . . . . . . . 7 . 1 . . 4 1 2 . . 13 35 Targets Rammed 91 | . 9 5 1 . 4 . 4 . . . . 1 . . 4 . . . . . . . . . 7 . 1 . . 4 1 2 . . 13 35 Kicked . | . . . . . . . . . . . . . . . . . . . . . . . . . . . . . . . . . . . . . Crushed . | . . . . . . . . . . . . . . . . . . . . . . . . . . . . . . . . . . . . . Highest Temperature 512 | . 80 60 48 150 180 210 343 7 78 195 . 198 197 256 265 212 . 66 48 22 18 253 . 162 228 54 108 24 211 512 285 222 351 323 288 434 Average Temperature 74 | . 20 21 19 76 60 95 85 7 39 43 . 119 112 99 77 71 . 23 24 11 7 84 . 49 74 26 58 9 74 131 89 38 80 120 103 93 Received Heat Transfer 4464 | . 120 183 51 60 231 72 200 360 78 144 . 72 30 . 504 135 . . 36 9 124 . 24 57 30 . . 39 331 285 243 33 260 32 352 369 Effects 21 | . . . . . . . . . . . . . . . 1 . . . . . . . . . . . . . . 13 2 1 2 . . 2 Shutdowns 3 | . . . . . . . . . . . . . . . . . . . . . . . . . . . . . . 3 . . . . . . Energy Bleed 4 | . . . . . . . . . . . . . . . . . . . . . . . . . . . . . . 2 . 1 . . . 1 Interference 7 | . . . . . . . . . . . . . . . 1 . . . . . . . . . . . . . . 4 2 . . . . . Matter Decay 2 | . . . . . . . . . . . . . . . . . . . . . . . . . . . . . . 1 . . 1 . . . Short Circuit 2 | . . . . . . . . . . . . . . . . . . . . . . . . . . . . . . 2 . . . . . . Damage (minor) 3 | . . . . . . . . . . . . . . . . . . . . . . . . . . . . . . 1 . . 1 . . 1 Siege Activations 85 | . . . . . . . . . . . . . . . 2 8 . . . . . . . 4 1 . 1 1 4 8 4 13 13 3 6 17 Total Turns 2448 | . . . . . . . . . . . . . . . 83 219 . . . . . . . 88 2 . 58 4 100 223 46 376 507 51 263 428 Longest Duration 178 | . . . . . . . . . . . . . . . 72 135 . . . . . . . 26 2 . 58 4 29 89 19 175 108 30 178 99 Robots Corrupted 47 | . . . . . . . . . 1 . . . . . . . . . . . . . . . . . . . . 15 5 11 12 1 2 . Combat Hostiles 45 | . . . . . . . . . 1 . . . . . . . . . . . . . . . . . . . . 13 5 11 12 1 2 . Parts Fried 79 | . . . . . . . . . 2 . . . . . . . . . . . . . . 1 . . . . . 15 10 32 16 . 3 . Impact Corruptions 33 | . . 1 1 . 1 . . . . . . . . . 2 . . . . . . . . . 1 . . . . 7 1 1 . . 2 16 Robots Melted 1 | . . . . . 1 . . . . . . . . . . . . . . . . . . . . . . . . . . . . . . . Combat Hostiles 1 | . . . . . 1 . . . . . . . . . . . . . . . . . . . . . . . . . . . . . . . Parts Melted 19 | . . . . 1 2 1 3 . . . . 1 3 . . . . . . . . . . . . . . . . . . 1 2 1 4 . Heat Transferred 11886 | . . 185 481 333 1739 703 1626 . 50 259 . 1591 740 481 555 . . . . . . . . . . . . . . 650 300 . . 518 1675 . Parts Sabotaged . | . . . . . . . . . . . . . . . . . . . . . . . . . . . . . . . . . . . . . Parts Stolen . | . . . . . . . . . . . . . . . . . . . . . . . . . . . . . . . . . . . . . Parts Stripped . | . . . . . . . . . . . . . . . . . . . . . . . . . . . . . . . . . . . . . Power Chain Reactions 9 | . . . . . . . . . 1 . . . . . . . . . . . . . . . . . . . . 5 3 . . . . . Missiles Intercepted . | . . . . . . . . . . . . . . . . . . . . . . . . . . . . . . . . . . . . . Alert | -11 -10 -9 -9 -9 -8 -8 -8 -8 -7 -7 -7 -7 -6 -6 -6 -6 -5 -5 -5 -5 -4 -4 -4 -4 -4 -4 -4 -4 -4 -3 -2 -2 -2 -1 -1 -1 ------- Run | Scr Mat Mat Sto Gar Mat Gar Mat Gar Fac Gar Fac Gar Fac Was Fac Gar Fac Was Fac Gar Fac Was Fac Gar Ext Cet Arc Hub Gar Res Res Qua Sec Acc Com Ac0 Peak Influence 841 | 30 406 446 301 112 342 295 531 526 486 798 418 767 429 150 191 570 317 110 250 453 402 96 30 234 302 598 457 119 518 841 689 407 580 639 741 . Initial 469 | . 19 110 166 42 54 135 143 345 275 340 418 285 402 150 . 33 298 110 . 161 237 81 . 21 122 89 159 . 51 291 469 318 38 223 124 . Average 245 | 21 250 318 181 86 206 232 282 469 387 632 416 608 412 92 65 321 306 53 97 320 261 42 5 148 123 314 199 47 355 581 457 131 167 374 406 . Maximum Alert Level 3 | . 2 2 1 . 1 1 2 2 2 3 2 3 2 . . 2 1 . 1 2 2 . . 1 1 2 2 . 2 3 2 2 2 2 3 . Low Security (%) 44 | 100 22 17 36 100 42 40 29 . . . . . . 100 100 44 . 100 88 21 13 100 100 71 75 22 48 100 19 . . 70 73 2 1 . Level 1 25 | . 77 67 63 . 57 59 45 17 50 13 . 27 8 . . 16 100 . 11 59 81 . . 28 24 45 35 . 28 18 29 29 21 65 8 . Level 2 16 | . . 15 . . . . 24 82 49 66 100 27 91 . . 39 . . . 19 5 . . . . 32 16 . 51 41 70 . 4 32 15 . Level 3 13 | . . . . . . . . . . 20 . 45 . . . . . . . . . . . . . . . . . 38 . . . . 75 . Level 4 . | . . . . . . . . . . . . . . . . . . . . . . . . . . . . . . . . . . . . . Level 5 . | . . . . . . . . . . . . . . . . . . . . . . . . . . . . . . . . . . . . . High Security . | . . . . . . . . . . . . . . . . . . . . . . . . . . . . . . . . . . . . . Max Security . | . . . . . . . . . . . . . . . . . . . . . . . . . . . . . . . . . . . . . Squads Dispatched 69 | . 5 1 2 . 1 . 2 . 2 . . . 1 . 8 . 2 . . . 5 . 1 . 2 . . 5 . 12 4 4 7 4 1 . Investigation 13 | . 4 . 1 . . . . . . . . . . . . . 1 . . . . . . . . . . 2 . 1 1 1 1 1 . . Extermination 21 | . . . . . . . . . . . . . 1 . 3 . 1 . . . 2 . . . . . . . . 5 . 3 5 1 . . Reinforcement 26 | . 1 1 1 . 1 . 2 . 2 . . . . . 5 . . . . . 1 . 1 . 2 . . 3 . 3 1 . 1 1 . . Assault 7 | . . . . . . . . . . . . . . . . . . . . . 1 . . . . . . . . 3 1 . . 1 1 . Garrison 2 | . . . . . . . . . . . . . . . . . . . . . 1 . . . . . . . . . 1 . . . . . Intercept . | . . . . . . . . . . . . . . . . . . . . . . . . . . . . . . . . . . . . . Construction Impeded 3 | . . . . . . . . . 1 . . . . . . . . . . . . . . . . . . . . 1 1 . . . . . Haulers Reinforced 1 | . . . . . . . . . . . . . . . . . . . . . . . . . . . . 1 . . . . . . . . Stealth | -11 -10 -9 -9 -9 -8 -8 -8 -8 -7 -7 -7 -7 -6 -6 -6 -6 -5 -5 -5 -5 -4 -4 -4 -4 -4 -4 -4 -4 -4 -3 -2 -2 -2 -1 -1 -1 --------- Run | Scr Mat Mat Sto Gar Mat Gar Mat Gar Fac Gar Fac Gar Fac Was Fac Gar Fac Was Fac Gar Fac Was Fac Gar Ext Cet Arc Hub Gar Res Res Qua Sec Acc Com Ac0 Distress Signals 54 | . 2 2 1 . 1 . 1 . . . . . . . 2 . . . 2 . 1 . 3 . . 2 . 1 . 9 1 . 3 2 21 . Communications Jammed 138 | . . . . . . . . . . . . . . . . . . . . . . . . . . . . 20 . 95 4 . 19 . . . Distress Signals 138 | . . . . . . . . . . . . . . . . . . . . . . . . . . . . 20 . 95 4 . 19 . . . Times Spotted 765 | . 24 29 6 2 15 8 34 11 6 30 2 32 1 1 26 19 . 5 15 9 32 6 2 21 23 13 13 12 23 79 32 23 75 14 48 74 Peak Tracking Total 11 | . 7 6 3 2 4 7 5 6 2 6 2 10 1 1 4 3 1 2 6 3 11 4 2 9 6 5 1 4 10 10 8 4 7 6 10 8 Tactical Retreats 57 | . . 2 2 . . 1 . 2 1 9 . 9 . . 5 . . . . . 3 . . . 1 . . . 1 7 3 . 8 1 1 1 Traps | -11 -10 -9 -9 -9 -8 -8 -8 -8 -7 -7 -7 -7 -6 -6 -6 -6 -5 -5 -5 -5 -4 -4 -4 -4 -4 -4 -4 -4 -4 -3 -2 -2 -2 -1 -1 -1 ------- Run | Scr Mat Mat Sto Gar Mat Gar Mat Gar Fac Gar Fac Gar Fac Was Fac Gar Fac Was Fac Gar Fac Was Fac Gar Ext Cet Arc Hub Gar Res Res Qua Sec Acc Com Ac0 Traps Triggered 68 | . 3 . . 2 1 . 1 . . 5 . . 2 . 5 3 1 . 1 3 2 . . 11 6 . . . 9 3 . 2 1 . 7 . Indirectly 1 | . . . . . . . . . . . . . . . . . . . . . . . . . . . . . . 1 . . . . . . Trap Hack Attempts . | . . . . . . . . . . . . . . . . . . . . . . . . . . . . . . . . . . . . . Triggered . | . . . . . . . . . . . . . . . . . . . . . . . . . . . . . . . . . . . . . Disarmed . | . . . . . . . . . . . . . . . . . . . . . . . . . . . . . . . . . . . . . Reprogrammed . | . . . . . . . . . . . . . . . . . . . . . . . . . . . . . . . . . . . . . Reused . | . . . . . . . . . . . . . . . . . . . . . . . . . . . . . . . . . . . . . Traps Extracted . | . . . . . . . . . . . . . . . . . . . . . . . . . . . . . . . . . . . . . Installed . | . . . . . . . . . . . . . . . . . . . . . . . . . . . . . . . . . . . . . Triggered 2 | . . . . . . . . . . . . . . . . . . . . . . . . . . . . . . 1 1 . . . . . Machines | -11 -10 -9 -9 -9 -8 -8 -8 -8 -7 -7 -7 -7 -6 -6 -6 -6 -5 -5 -5 -5 -4 -4 -4 -4 -4 -4 -4 -4 -4 -3 -2 -2 -2 -1 -1 -1 ---------- Run | Scr Mat Mat Sto Gar Mat Gar Mat Gar Fac Gar Fac Gar Fac Was Fac Gar Fac Was Fac Gar Fac Was Fac Gar Ext Cet Arc Hub Gar Res Res Qua Sec Acc Com Ac0 Machines Disabled 78 | . 1 2 . 1 2 . 6 . 3 1 . 1 . . 1 2 . . . 2 . . . 2 2 1 4 1 2 3 . 9 16 3 4 9 Max in Single Turn 2 | . 1 1 . 1 1 . 2 . 1 1 . 1 . . 1 1 . . . 1 . . . 1 1 1 1 1 1 1 . 1 2 1 2 1 Garrison Access 3 | . . . . . . . . . . . . . . . . . . . . . 1 . . . . . . . . . 1 . . 1 . . Garrison Relay 9 | . . . . 1 . . . . . . . . . . . 2 . . . 2 . . . 2 . . . . 2 . . . . . . . Network Hub 1 | . . . . . . . . . . . . . . . . . . . . . . . . . . . . 1 . . . . . . . . Machines Sabotaged 1 | . . . . . . . . . . . . . . . . . . . . . . . . . . . . 1 . . . . . . . . Garrisons Compromised . | . . . . . . . . . . . . . . . . . . . . . . . . . . . . . . . . . . . . . Overloaded Fab Kills . | . . . . . . . . . . . . . . . . . . . . . . . . . . . . . . . . . . . . . Fab Network Shutdowns . | . . . . . . . . . . . . . . . . . . . . . . . . . . . . . . . . . . . . . Hacking | -11 -10 -9 -9 -9 -8 -8 -8 -8 -7 -7 -7 -7 -6 -6 -6 -6 -5 -5 -5 -5 -4 -4 -4 -4 -4 -4 -4 -4 -4 -3 -2 -2 -2 -1 -1 -1 --------- Run | Scr Mat Mat Sto Gar Mat Gar Mat Gar Fac Gar Fac Gar Fac Was Fac Gar Fac Was Fac Gar Fac Was Fac Gar Ext Cet Arc Hub Gar Res Res Qua Sec Acc Com Ac0 Machines Accessed 118 | . 9 3 6 . 5 . 5 . 1 . 1 . 2 . 6 . 2 . 4 . 1 . 2 . 10 4 . 6 . 5 6 17 19 3 1 . Terminals 85 | . 7 1 4 . 2 . 4 . . . . . 1 . 3 . . . 3 . . . 1 . 10 4 . 5 . 3 4 13 16 3 1 . Fabricators 6 | . . . . . . . . . . . . . . . 2 . 2 . . . . . . . . . . . . 2 . . . . . . Repair Stations 2 | . . . . . 1 . . . . . . . . . . . . . . . . . . . . . . . . . . 1 . . . . Recycling Units 5 | . 2 1 1 . . . . . . . . . 1 . . . . . . . . . . . . . . . . . . . . . . . Scanalyzers 9 | . . 1 . . 1 . . . . . . . . . . . . . . . . . . . . . . . . . 1 3 3 . . . Garrison Access 11 | . . . 1 . 1 . 1 . 1 . 1 . . . 1 . . . 1 . 1 . 1 . . . . 1 . . 1 . . . . . Total Hacks 427 | . 24 6 17 . 18 . 22 . 2 . 2 . 6 . 13 . 5 . 9 . 3 . 5 . 34 10 . 23 . 14 22 83 92 11 6 . Successful 256 | . 14 5 10 . 15 . 12 . 2 . 2 . 1 . 7 . 2 . 6 . 2 . 3 . 22 9 . 16 . 5 18 46 50 5 4 . Failed 167 | . 10 1 7 . 3 . 10 . . . . . 5 . 6 . 3 . 3 . 1 . 2 . 11 . . 7 . 9 4 36 41 6 2 . Catastrophic 25 | . 2 . . . . . . . . . . . 2 . 2 . . . 1 . 1 . . . 2 . . 2 . 3 . 6 3 1 . . Database Lockouts 4 | . . . . . . . . . . . . . . . . . . . . . . . . . 1 1 . . . . . 1 1 . . . Manual 203 | . 12 1 10 . 6 . 12 . . . . . . . 2 . . . 5 . 1 . 1 . 20 10 . 18 . 7 7 32 48 5 6 . Terminals 337 | . 21 1 13 . 8 . 20 . . . . . 4 . 5 . . . 7 . . . 3 . 34 10 . 20 . 10 19 66 79 11 6 . Fabricators 15 | . . . . . . . . . . . . . . . 6 . 5 . . . . . . . . . . . . 4 . . . . . . Repair Stations 12 | . . . . . 3 . . . . . . . . . . . . . . . . . . . . . . . . . . 9 . . . . Recycling Units 8 | . 3 2 1 . . . . . . . . . 2 . . . . . . . . . . . . . . . . . . . . . . . Scanalyzers 30 | . . 3 . . 5 . . . . . . . . . . . . . . . . . . . . . . . . . 1 8 13 . . . Garrison Access 25 | . . . 3 . 2 . 2 . 2 . 2 . . . 2 . . . 2 . 3 . 2 . . . . 3 . . 2 . . . . . Terminal Hacks 140 | . 10 1 5 . 4 . 6 . . . . . . . 2 . . . 2 . . . 1 . 16 7 . 7 . 1 10 29 31 5 3 . Part Schematic 3 | . . . . . . . . . . . . . . . 1 . . . . . . . . . 1 . . . . . . 1 . . . . Robot Analysis 2 | . 1 . . . . . . . . . . . . . . . . . . . . . . . . . . . . . . . 1 . . . Prototype ID Bank 34 | . 6 . . . 1 . 1 . . . . . . . . . . . 2 . . . . . 1 4 . 1 . 1 1 11 5 . . . Open Door 14 | . . . 2 . . . . . . . . . . . . . . . . . . . . . 6 1 . . . . . . 3 1 1 . Level Access Points 1 | . . . . . . . 1 . . . . . . . . . . . . . . . . . . . . . . . . . . . . . Branch Access Points 3 | . . 1 . . . . . . . . . . . . . . . . . . . . . . . . . . . . 1 . . 1 . . Emergency Access Points 1 | . 1 . . . . . . . . . . . . . . . . . . . . . . . . . . . . . . . . . . . Machine Index 2 | . . . . . 1 . . . . . . . . . . . . . . . . . . . . . . . . . . 1 . . . . Terminal Index 6 | . . . . . 1 . 1 . . . . . . . . . . . . . . . 1 . . . . . . . 1 1 1 . . . Scanalyzer Index 1 | . . . . . . . . . . . . . . . . . . . . . . . . . . . . . . . . . 1 . . . Unreport Threat 27 | . . . 2 . 1 . 1 . . . . . . . . . . . . . . . . . 4 1 . 1 . . 1 5 6 3 2 . Locate Traps 9 | . . . . . . . 1 . . . . . . . . . . . . . . . . . 2 . . . . . 2 2 2 . . . Dispatch Records 2 | . . . . . . . . . . . . . . . . . . . . . . . . . . 1 . . . . . 1 . . . . Patrol Status 5 | . . . . . . . . . . . . . . . . . . . . . . . . . . . . 1 . . . 1 3 . . . Recall Investigation 3 | . 1 . . . . . . . . . . . . . . . . . . . . . . . . . . . . . 1 1 . . . . Recall Extermination 3 | . . . . . . . . . . . . . . . . . . . . . . . . . . . . . . . . 2 1 . . . Recall Reinforcements 2 | . . . . . . . . . . . . . . . . . . . . . . . . . . . . 2 . . . . . . . . Hauler Manifests 3 | . 1 . . . . . . . . . . . . . . . . . . . . . . . 1 . . . . . . . 1 . . . Registered Components 2 | . . . . . . . 1 . . . . . . . . . . . . . . . . . . . . . . . . 1 . . . . Registered Prototypes 1 | . . . . . . . . . . . . . . . . . . . . . . . . . . . . . . . . 1 . . . . Zone Layout 16 | . . . 1 . . . . . . . . . . . 1 . . . . . . . . . 1 . . 2 . . 3 1 7 . . . Fabricator Hacks 4 | . . . . . . . . . . . . . . . 2 . 2 . . . . . . . . . . . . . . . . . . . Load Schematic 1 | . . . . . . . . . . . . . . . . . 1 . . . . . . . . . . . . . . . . . . . Build 3 | . . . . . . . . . . . . . . . 2 . 1 . . . . . . . . . . . . . . . . . . . Repair Station Hacks 8 | . . . . . 2 . . . . . . . . . . . . . . . . . . . . . . . . . . 6 . . . . Scan Component 4 | . . . . . 1 . . . . . . . . . . . . . . . . . . . . . . . . . . 3 . . . . Repair 4 | . . . . . 1 . . . . . . . . . . . . . . . . . . . . . . . . . . 3 . . . . Recycling Unit Hacks 4 | . 1 2 . . . . . . . . . . 1 . . . . . . . . . . . . . . . . . . . . . . . Process 1 | . . 1 . . . . . . . . . . . . . . . . . . . . . . . . . . . . . . . . . . Report Inventory 1 | . 1 . . . . . . . . . . . . . . . . . . . . . . . . . . . . . . . . . . . Retrieve Matter 1 | . . 1 . . . . . . . . . . . . . . . . . . . . . . . . . . . . . . . . . . Retrieve Components 1 | . . . . . . . . . . . . . 1 . . . . . . . . . . . . . . . . . . . . . . . Scanalyzer 20 | . . 2 . . 5 . . . . . . . . . . . . . . . . . . . . . . . . . 1 5 7 . . . Insert Component 16 | . . 1 . . 3 . . . . . . . . . . . . . . . . . . . . . . . . . 1 5 6 . . . Analyze 4 | . . 1 . . 2 . . . . . . . . . . . . . . . . . . . . . . . . . . . 1 . . . Garrison Access Hacks 21 | . . . 2 . 2 . 2 . 2 . 2 . . . 2 . . . 2 . 2 . 2 . . . . 1 . . 2 . . . . . Unlock Access 10 | . . . 1 . 1 . 1 . 1 . 1 . . . 1 . . . 1 . 1 . 1 . . . . 1 . . . . . . . . Seal Access 1 | . . . . . . . . . . . . . . . . . . . . . . . . . . . . . . . 1 . . . . . Coupler Status 10 | . . . 1 . 1 . 1 . 1 . 1 . . . 1 . . . 1 . 1 . 1 . . . . . . . 1 . . . . . Unauthorized Hacks 59 | . 3 . 3 . 2 . 4 . . . . . . . 1 . . . 2 . . . . . 6 2 . 8 . 4 5 6 12 . 1 . Terminals 51 | . 1 . 2 . 2 . 4 . . . . . . . . . . . 2 . . . . . 6 2 . 7 . 2 5 6 11 . 1 . Track 25 | . . . . . . . 1 . . . . . . . . . . . 1 . . . . . 4 1 . 3 . 1 2 4 7 . 1 . Assimilate 1 | . . . . . . . . . . . . . . . . . . . . . . . . . . . . 1 . . . . . . . . Botnet 17 | . 1 . 2 . 1 . 2 . . . . . . . . . . . 1 . . . . . 2 1 . 1 . 1 1 2 2 . . . Operators 6 | . . . . . 1 . 1 . . . . . . . . . . . . . . . . . . . . . . . 2 . 2 . . . Sabotage 2 | . . . . . . . . . . . . . . . . . . . . . . . . . . . . 2 . . . . . . . . Fabricators 3 | . . . . . . . . . . . . . . . 1 . . . . . . . . . . . . . . 2 . . . . . . Prioritize 1 | . . . . . . . . . . . . . . . 1 . . . . . . . . . . . . . . . . . . . . . Haulers 2 | . . . . . . . . . . . . . . . . . . . . . . . . . . . . . . 2 . . . . . . Repair Stations . | . . . . . . . . . . . . . . . . . . . . . . . . . . . . . . . . . . . . . Recycling Units 3 | . 2 . 1 . . . . . . . . . . . . . . . . . . . . . . . . . . . . . . . . . Tunnel 3 | . 2 . 1 . . . . . . . . . . . . . . . . . . . . . . . . . . . . . . . . . Scanalyzers 1 | . . . . . . . . . . . . . . . . . . . . . . . . . . . . . . . . . 1 . . . Researchers 1 | . . . . . . . . . . . . . . . . . . . . . . . . . . . . . . . . . 1 . . . Garrison Access 1 | . . . . . . . . . . . . . . . . . . . . . . . . . . . . 1 . . . . . . . . Reprogram 1 | . . . . . . . . . . . . . . . . . . . . . . . . . . . . 1 . . . . . . . . Data Cores Recovered . | . . . . . . . . . . . . . . . . . . . . . . . . . . . . . . . . . . . . . Used . | . . . . . . . . . . . . . . . . . . . . . . . . . . . . . . . . . . . . . Hacking Detections 92 | . 7 1 5 . 3 . 5 . 1 . 1 . 1 . 6 . 2 . 4 . 1 . 2 . 9 3 . 5 . 5 4 12 12 3 . . Full Trace Events 8 | . 1 . 1 . . . . . . . . . . . . . 1 . . . . . . . . . . . . 1 1 1 1 1 . . Feedback Events 1 | . . . . . . . . . . . . . . . . . . . . . . . . . . . . . . 1 . . . . . . Corruption 1 | . . . . . . . . . . . . . . . . . . . . . . . . . . . . . . 1 . . . . . . Feedback Blocked . | . . . . . . . . . . . . . . . . . . . . . . . . . . . . . . . . . . . . . Robot Schematics Acquired . | . . . . . . . . . . . . . . . . . . . . . . . . . . . . . . . . . . . . . Robots Built . | . . . . . . . . . . . . . . . . . . . . . . . . . . . . . . . . . . . . . Matter . | . . . . . . . . . . . . . . . . . . . . . . . . . . . . . . . . . . . . . Time . | . . . . . . . . . . . . . . . . . . . . . . . . . . . . . . . . . . . . . Total Robot Build Rating . | . . . . . . . . . . . . . . . . . . . . . . . . . . . . . . . . . . . . . Part Schematics Acquired 7 | . . 1 . . 2 . . . . . . . . . 1 . . . . . . . . . 1 . . . . . . 1 1 . . . Parts Built 4 | . . . . . . . . . . . . . . . 2 . 2 . . . . . . . . . . . . . . . . . . . Matter 746 | . . . . . . . . . . . . . . . 468 . 278 . . . . . . . . . . . . . . . . . . . Time 303 | . . . . . . . . . . . . . . . 234 . 69 . . . . . . . . . . . . . . . . . . . Total Part Build Rating 32 | . . . . . . . . . . . . . . . 14 . 18 . . . . . . . . . . . . . . . . . . . Parts Repaired 4 | . . . . . 1 . . . . . . . . . . . . . . . . . . . . . . . . . . 3 . . . . Time 71 | . . . . . 32 . . . . . . . . . . . . . . . . . . . . . . . . . . 39 . . . . Parts Recycled . | . . . . . . . . . . . . . . . . . . . . . . . . . . . . . . . . . . . . . Recycled Matter 37 | . . 37 . . . . . . . . . . . . . . . . . . . . . . . . . . . . . . . . . . Retrieved Matter 37 | . . 37 . . . . . . . . . . . . . . . . . . . . . . . . . . . . . . . . . . Retrieved Components 3 | . . . . . . . . . . . . . 3 . . . . . . . . . . . . . . . . . . . . . . . Parts Scanalyzed 4 | . . 1 . . 2 . . . . . . . . . . . . . . . . . . . . . . . . . . . 1 . . . Part Schematics Acquired 4 | . . 1 . . 2 . . . . . . . . . . . . . . . . . . . . . . . . . . . 1 . . . Parts Damaged . | . . . . . . . . . . . . . . . . . . . . . . . . . . . . . . . . . . . . . Bothacking | -11 -10 -9 -9 -9 -8 -8 -8 -8 -7 -7 -7 -7 -6 -6 -6 -6 -5 -5 -5 -5 -4 -4 -4 -4 -4 -4 -4 -4 -4 -3 -2 -2 -2 -1 -1 -1 ------------ Run | Scr Mat Mat Sto Gar Mat Gar Mat Gar Fac Gar Fac Gar Fac Was Fac Gar Fac Was Fac Gar Fac Was Fac Gar Ext Cet Arc Hub Gar Res Res Qua Sec Acc Com Ac0 Used RIF Installer 9 | . . . . 1 . 1 . 1 . 1 . 1 . . . 1 . . . 1 . . . 1 . . . . 1 . . . . . . . Hotswap 1 | . . . . . . 1 . . . . . . . . . . . . . . . . . . . . . . . . . . . . . . Command Fork 1 | . . . . . . . . . . 1 . . . . . . . . . . . . . . . . . . . . . . . . . . Watcher Feeds 1 | . . . . . . . . 1 . . . . . . . . . . . . . . . . . . . . . . . . . . . . Structural Interface 1 | . . . . . . . . . . . . . . . . . . . . . . . . 1 . . . . . . . . . . . . Program Shield 1 | . . . . . . . . . . . . . . . . . . . . 1 . . . . . . . . . . . . . . . . Autooverride 3 | . . . . . . . . . . . . 1 . . . 1 . . . . . . . . . . . . 1 . . . . . . . Robots Hacked 84 | . . . . . . . . . . . . . 1 1 . . . 6 2 4 16 6 2 8 1 . . . 5 26 5 . . . 1 . Non-combat 13 | . . . . . . . . . . . . . 1 . . . . . . . 2 . 2 . . . . . . 6 2 . . . . . Combat 70 | . . . . . . . . . . . . . . 1 . . . 6 2 4 14 6 . 8 1 . . . 5 20 3 . . . . . Autooverrided 18 | . . . . . . . . . . . . . . . . . . . 1 . 2 . . 2 1 . . . 5 6 1 . . . . . Robot Hacks Applied 78 | . . . . . . . . . . . . . 1 1 . . . 9 2 4 15 12 2 6 . . . . 1 21 4 . . . . . parse_system 9 | . . . . . . . . . . . . . . . . . . 1 . . 1 7 . . . . . . . . . . . . . . no_distress 1 | . . . . . . . . . . . . . . . . . . . . . . . . . . . . . . 1 . . . . . . find_chute 2 | . . . . . . . . . . . . . 1 . . . . . . . 1 . . . . . . . . . . . . . . . ignore_repairs 1 | . . . . . . . . . . . . . . . . . . . . . . . . . . . . . . 1 . . . . . . map_walls 2 | . . . . . . . . . . . . . . . . . . . . . . . 1 . . . . . . . 1 . . . . . drop_inventory 3 | . . . . . . . . . . . . . . . . . . . . . . . 1 . . . . . . 1 1 . . . . . block_reporting 1 | . . . . . . . . . . . . . . . . . . . . . . . . . . . . . . 1 . . . . . . map_route 2 | . . . . . . . . . . . . . . . . . . . . . . . . . . . . . . 2 . . . . . . ignore_targets 13 | . . . . . . . . . . . . . . 1 . . . 7 . . . 5 . . . . . . . . . . . . . . find_garrison 2 | . . . . . . . . . . . . . . . . . . . 1 . . . . . . . . . . . 1 . . . . . mark_system 1 | . . . . . . . . . . . . . . . . . . . . 1 . . . . . . . . . . . . . . . . overload_power 2 | . . . . . . . . . . . . . . . . . . 1 . . 1 . . . . . . . . . . . . . . . wipe_record 3 | . . . . . . . . . . . . . . . . . . . . . 1 . . . . . . . . 2 . . . . . . reboot_system 10 | . . . . . . . . . . . . . . . . . . . 1 2 5 . . . . . . . . 2 . . . . . . overwrite_iff 25 | . . . . . . . . . . . . . . . . . . . . 1 6 . . 6 . . . . 1 10 1 . . . . . formatsys_low 1 | . . . . . . . . . . . . . . . . . . . . . . . . . . . . . . 1 . . . . . . Manual 1 | . . . . . . . . . . . . . . . . . . . . . . . . . . . . . . . . . . . 1 . Relay Couplers Released 36 | . . . . 3 . . . . . . . . . . . 6 . . . 6 2 . . 8 . . . . 7 . 3 . . 1 . . Machine Destruction 36 | . . . . 3 . . . . . . . . . . . 6 . . . 6 2 . . 8 . . . . 7 . 3 . . 1 . . Attached 15 | . . . . . . . . . . . . . 1 . . 4 1 . . . 1 1 . 1 . . . . 3 2 1 . . . . . Robots Rewired 17 | . . . . . . . . . . . . . . . . . . . . . . . . . 11 . . . 6 . . . . . . . Allies Hacked 2 | . . . . . . . . . . . . . . . . . . . 1 . . . . . . 1 . . . . . . . . . . Hacks Repelled . | . . . . . . . . . . . . . . . . . . . . . . . . . . . . . . . . . . . . . Allies | -11 -10 -9 -9 -9 -8 -8 -8 -8 -7 -7 -7 -7 -6 -6 -6 -6 -5 -5 -5 -5 -4 -4 -4 -4 -4 -4 -4 -4 -4 -3 -2 -2 -2 -1 -1 -1 -------- Run | Scr Mat Mat Sto Gar Mat Gar Mat Gar Fac Gar Fac Gar Fac Was Fac Gar Fac Was Fac Gar Fac Was Fac Gar Ext Cet Arc Hub Gar Res Res Qua Sec Acc Com Ac0 Total Allies 104 | . . . . . . . . . . . . . . . . . . 18 1 2 8 1 . 10 23 5 . 1 11 21 3 . . . . . Largest Group 18 | . . . . . . . . . . . . . . . . . . 18 5 2 2 1 . 4 15 12 7 2 6 7 1 . . . . . Highest-Rated Group 911 | . . . . . . . . . . . . . . . . . . 668 125 54 58 46 . 48 677 911 650 188 180 244 30 . . . . . Highest-Rated Ally 156 | . . . . . . . . . . . . . . . . . . 50 29 29 58 46 . 47 156 156 143 94 49 64 30 . . . . . Total Orders 37 | . . . . . . . . . . . . . . . 14 . . . . . . . 2 . 2 2 9 2 . 1 . . . 2 . 3 STAY 6 | . . . . . . . . . . . . . . . . . . . . . . . . . 1 1 2 1 . . . . . . . 1 FOLLOW 11 | . . . . . . . . . . . . . . . 1 . . . . . . . . . 1 1 7 1 . . . . . . . . AID 1 | . . . . . . . . . . . . . . . . . . . . . . . . . . . . . . 1 . . . . . . EXPLORE 15 | . . . . . . . . . . . . . . . 10 . . . . . . . 2 . . . . . . . . . . 2 . 1 RETURN 4 | . . . . . . . . . . . . . . . 3 . . . . . . . . . . . . . . . . . . . . 1 Ally Attacks 645 | . . . . . . . . . . . . . . . . . . 188 30 . 26 3 . 19 147 102 26 19 9 67 9 . . . . . Total Damage 16212 | . . . . . . . . . . . . . . . . . . 3871 448 . 442 118 . 170 4207 3116 1067 684 278 1605 206 . . . . . Kills 78 | . . . . . . . . . . . . . . . . . . 7 4 . 2 . . 1 30 17 4 1 3 6 3 . . . . . Allies Corrupted 2 | . . . . . . . . . . . . . . . . . . . . . . . 1 . . 1 . . . . . . . . . . Allies Melted . | . . . . . . . . . . . . . . . . . . . . . . . . . . . . . . . . . . . . . Intel | -11 -10 -9 -9 -9 -8 -8 -8 -8 -7 -7 -7 -7 -6 -6 -6 -6 -5 -5 -5 -5 -4 -4 -4 -4 -4 -4 -4 -4 -4 -3 -2 -2 -2 -1 -1 -1 ------- Run | Scr Mat Mat Sto Gar Mat Gar Mat Gar Fac Gar Fac Gar Fac Was Fac Gar Fac Was Fac Gar Fac Was Fac Gar Ext Cet Arc Hub Gar Res Res Qua Sec Acc Com Ac0 Robot Analysis Total 2 | . 1 . . . . . . . . . . . . . . . . . . . . . . . . . . . . . . . 1 . . . Derelict Logs Recovered . | . . . . . . . . . . . . . . . . . . . . . . . . . . . . . . . . . . . . . Drone Launches 28 | . . . . . . . . . . . . . . . 9 . . . . . . . 15 . . . . . . . . . . 2 . 2 Drone Recoveries 14 | . . . . . . . . . . . . . . . 8 . . . . . . . 3 . . . . . . . . . . 1 . 2 Exploration | -11 -10 -9 -9 -9 -8 -8 -8 -8 -7 -7 -7 -7 -6 -6 -6 -6 -5 -5 -5 -5 -4 -4 -4 -4 -4 -4 -4 -4 -4 -3 -2 -2 -2 -1 -1 -1 ------------- Run | Scr Mat Mat Sto Gar Mat Gar Mat Gar Fac Gar Fac Gar Fac Was Fac Gar Fac Was Fac Gar Fac Was Fac Gar Ext Cet Arc Hub Gar Res Res Qua Sec Acc Com Ac0 Turns Passed 39954 | 196 928 644 295 215 784 294 1089 204 225 603 110 770 268 644 2031 1995 264 844 326 463 678 718 325 792 2085 438 1508 521 1001 2260 612 4146 2951 587 4860 3280 Spaces Moved 16601 | 95 511 258 119 125 348 102 460 96 128 382 25 295 155 370 894 553 144 442 211 213 330 343 188 307 870 187 172 230 367 790 264 1654 1146 308 2155 1364 Core 63 | 11 . . . . . . . . . . . . . . . 26 . . . . . . . . . . 26 . . . . . . . . . Treads 12572 | 84 271 113 119 35 183 102 322 . . 58 25 295 . 338 525 527 138 . . . . . . 204 870 187 146 230 342 567 264 1654 1146 308 2155 1364 Legs . | . . . . . . . . . . . . . . . . . . . . . . . . . . . . . . . . . . . . . Wheels 3966 | . 240 145 . 90 165 . 138 96 128 324 . . 155 32 369 . 6 442 211 213 330 343 188 103 . . . . 25 223 . . . . . . Hover . | . . . . . . . . . . . . . . . . . . . . . . . . . . . . . . . . . . . . . Flight . | . . . . . . . . . . . . . . . . . . . . . . . . . . . . . . . . . . . . . Fastest Speed 50 | 50 90 110 200 120 120 197 130 120 120 110 177 177 100 100 125 165 120 120 130 135 135 135 135 135 212 192 192 192 140 140 165 165 155 155 155 147 Average Speed 178 | 147 131 148 200 142 168 197 176 129 126 128 177 194 119 159 155 272 169 124 133 135 138 143 154 186 212 208 812 192 201 187 177 187 164 155 178 157 Slowest Speed 4300 | 160 160 200 200 200 205 197 197 130 130 177 177 197 130 172 172 2350 172 130 135 135 145 155 155 212 212 212 4300 192 220 390 190 250 197 155 195 197 Overloaded Moves . | . . . . . . . . . . . . . . . . . . . . . . . . . . . . . . . . . . . . . Propulsion Burnouts . | . . . . . . . . . . . . . . . . . . . . . . . . . . . . . . . . . . . . . Robots Hopped . | . . . . . . . . . . . . . . . . . . . . . . . . . . . . . . . . . . . . . Cave-ins Triggered . | . . . . . . . . . . . . . . . . . . . . . . . . . . . . . . . . . . . . . Teleports 5 | . . . . . . . . . . . . . . . . . . . . . . . . . . . . . . . . . 3 . 1 1 Exploration Rate (%) 46 | 4 95 23 22 44 38 40 44 38 5 63 2 64 5 89 47 69 3 88 9 42 13 87 27 59 86 83 75 32 46 28 14 96 89 17 54 71 Regions Visited 36 Branch Regions 9 Pre-discovered Areas 3 | . 2 . 1 . . . . . . . . . . . . . . . . . . . . . . . . . . . . . . . . . Known Exits Taken 13 | . . 1 1 . 1 . 1 . 1 . 1 . . . 1 . . . 1 . . . 1 . . . . 1 . 1 1 . . 1 . . Unknown Exits Taken 8 | 1 1 . . . . . . . . . . . . . . . . . . . . . . . 1 1 1 . . . . 1 1 . 1 . Scrap Searched . | . . . . . . . . . . . . . . . . . . . . . . . . . . . . . . . . . . . . . Spaces Dug 161 | . 1 . 4 . 2 . 18 . 2 13 . . . . 16 1 . . 2 . 1 . 2 3 . . . 5 . 24 10 12 11 25 2 7 Terrain Destroyed 1416 | . 4 . 4 . 8 . 62 8 53 49 . 35 1 . 18 72 . . 28 6 1 . 2 24 5 . 3 11 3 77 43 20 98 61 257 463 Melee 85 | . . . . . . . . . 2 . . . . . 15 1 . . 2 . 1 . 2 1 . . . 1 . 23 10 12 11 2 2 . Projectile 592 | . 4 . 4 . 8 . 19 1 3 . . . 1 . 3 . . . . . . . . 5 5 . 3 10 3 23 2 8 10 2 15 463 AOE 739 | . . . . . . . 43 7 48 49 . 35 . . . 71 . . 26 6 . . . 18 . . . . . 31 31 . 77 57 240 . Terrain Rammed 1 | . . . . . . . . . . . . . . . . . . . . . . . . . 1 . . . . . . . . . . . Walls Destroyed . | . . . . . . . . . . . . . . . . . . . . . . . . . . . . . . . . . . . . . Machines Disabled 1 | . . . . . . . . . . . . . . . . . . . . . . . . . 1 . . . . . . . . . . . Actions | -11 -10 -9 -9 -9 -8 -8 -8 -8 -7 -7 -7 -7 -6 -6 -6 -6 -5 -5 -5 -5 -4 -4 -4 -4 -4 -4 -4 -4 -4 -3 -2 -2 -2 -1 -1 -1 --------- Run | Scr Mat Mat Sto Gar Mat Gar Mat Gar Fac Gar Fac Gar Fac Was Fac Gar Fac Was Fac Gar Fac Was Fac Gar Ext Cet Arc Hub Gar Res Res Qua Sec Acc Com Ac0 Total 23870 | 119 639 405 153 152 472 166 631 131 168 459 90 389 212 414 1390 960 161 611 237 361 472 486 219 453 1066 230 244 280 537 1298 352 2609 1857 376 2966 2105 Wait 3116 | . 13 52 13 1 36 50 76 6 6 . 65 8 7 . 335 295 . 43 5 96 58 40 5 16 84 28 40 19 26 164 7 651 328 18 289 236 Move 16575 | 94 510 257 119 124 348 101 460 95 128 381 25 294 155 369 894 552 144 441 211 212 330 342 188 306 869 186 171 229 366 789 263 1653 1145 307 2154 1363 Hop . | . . . . . . . . . . . . . . . . . . . . . . . . . . . . . . . . . . . . . Pick Up 420 | 4 14 12 5 1 14 . 8 2 2 . . 5 5 5 15 9 2 7 1 4 5 4 6 10 6 2 6 1 13 20 5 64 24 . 124 15 Fast Attach 171 | 7 7 4 . . 5 . 3 . 3 . . 5 7 5 12 6 2 1 1 . 5 1 2 . 2 5 . . 1 4 3 22 19 3 14 22 Attach 258 | . 1 4 . 2 5 . 7 3 3 5 . 4 4 3 6 6 5 1 . . 3 5 . 8 . . 1 1 10 30 10 24 29 6 34 38 Detach 153 | . 3 1 . 2 . . . . 1 . . 4 2 5 3 3 . . 2 . 3 1 1 5 . 1 1 2 3 16 5 16 25 3 21 24 Swap 316 | . 5 2 3 . 8 . 10 1 4 5 . 3 3 4 2 11 2 5 3 2 5 6 . 12 11 2 3 4 17 57 15 18 24 6 37 26 Drop 443 | . 15 11 . 2 14 . 11 . 2 . . 1 4 9 21 7 4 11 1 3 1 3 6 6 7 2 1 2 8 9 1 69 34 1 126 51 Fire 1513 | 14 62 57 12 6 38 15 52 24 17 34 . 64 16 13 20 50 . 61 3 2 12 71 . 48 14 4 20 21 40 126 26 64 93 29 112 273 Melee 566 | . . . . . . . . . 2 . . . 1 1 74 15 2 41 10 18 50 13 5 8 4 . . 1 9 79 16 26 136 3 30 22 Ram 2 | . . . . . . . . . . . . . . . 1 . . . . . . . . . 1 . . . . . . . . . . . Kick . | . . . . . . . . . . . . . . . . . . . . . . . . . . . . . . . . . . . . . Crush 90 | . 9 5 1 . 4 . 4 . . . . 1 . . 3 . . . . . . . . . 7 . 1 . . 4 1 2 . . 13 35 Escape Stasis 156 | . . . . 14 . . . . . 34 . . 8 . 4 6 . . . 24 . . . 34 12 . . . 8 . . . . . 12 . Rewire 85 | . . . . . . . . . . . . . . . . . . . . . . . . . 49 . . . 36 . . . . . . . Trap . | . . . . . . . . . . . . . . . . . . . . . . . . . . . . . . . . . . . . . Miscellaneous 6 | . . . . . . . . . . . . . . . . . . . . . . . 6 . . . . . . . . . . . . . Route ------- -11/Scrapyard -10/Materials (discovered 4 exits: *Mat x3 / [*Min]) -9/Materials (discovered 3 exits: Min / *Sto x2) -9/Storage -9/Garrison -8/Materials (discovered 2 exits: *Fac / Gar) -8/Garrison -8/Materials (discovered 4 exits: *Fac x3 / Gar) -8/Garrison -7/Factory -7/Garrison (discovered 3 exits: *Fac x3) -7/Factory -7/Garrison (discovered 3 exits: *Fac x3) -6/Factory -6/Waste -6/Factory (discovered 3 exits: *Fac x2 / Gar) -6/Garrison (discovered 3 exits: *Fac x3) -5/Factory -5/Waste -5/Factory -5/Garrison -4/Factory -4/Waste -4/Factory (discovered 2 exits: [*Upp] / Gar) -4/Garrison (discovered 2 exits: *Ext x2) -4/Extension (discovered 2 exits: *Res / *Cet) -4/Cetus (discovered 2 exits: *Res / [*Arc]) -4/Archives (discovered 2 exits: *Res / *Hub) -4/Hub_04(d) (discovered 2 exits: Res / Gar) -4/Garrison -3/Research -2/Research (discovered 2 exits: *Qua x2) -2/Quarantine (discovered 2 exits: *Acc / *Sec) -2/Section 7 -1/Access -1/Command (discovered 2 exits: [*Sur] / [*Ac0]) -1/Access_0 To Fleet Rendezvous History --------- Turn | Location | Event 2 | -11/Scrapyard | Discovered new exit (range 16) 197 | -11/Scrapyard | Entered Materials 292 | -10/Materials | Discovered new exit (range 13) 313 | -10/Materials | Build established: Mutant 658 | -10/Materials | Discovered new exit (range 10) 788 | -10/Materials | Discovered new exit (range 6) 1101 | -10/Materials | Discovered new exit (range 15) 1125 | -10/Materials | Entered another Materials area 1125 | -9/Materials | Evolved 2 slots: Utility x2 1729 | -9/Materials | Discovered new exit (range 15) 1735 | -9/Materials | Identified exit to Mines 1735 | -9/Materials | Identified exit to Storage 1769 | -9/Materials | Entered Storage 1945 | -9/Storage | Build established: Hauler-Mutant 2064 | -9/Storage | Identified exit to Garrison 2064 | -9/Storage | Entered Garrison 2110 | -9/Garrison | Triggered checkpoint 2150 | -9/Garrison | Garrison Relay disabled 2248 | -9/Garrison | Discovered new exit (range 12) 2270 | -9/Garrison | Installed Relay Interface Framework 2279 | -9/Garrison | Entered Materials 2279 | -8/Materials | Evolved 2 slots: Utility x2 2546 | -8/Materials | Repaired Cooling System 2866 | -8/Materials | Discovered new exit (range 7) 3063 | -8/Materials | Identified exit to Garrison 3063 | -8/Materials | Entered Garrison 3073 | -8/Garrison | Expanded RIF knowledge: Hotswap 3152 | -8/Garrison | Triggered checkpoint 3223 | -8/Garrison | Destroyed 7 combat bots 3328 | -8/Garrison | Discovered new exit (range 12) 3357 | -8/Garrison | Entered Materials 3928 | -8/Materials | Identified exit to Factory 4446 | -8/Materials | Identified exit to Garrison 4446 | -8/Materials | Entered Garrison 4476 | -8/Garrison | Triggered checkpoint 4560 | -8/Garrison | Lost 3 parts (1p1u1w) 4624 | -8/Garrison | Discovered exit to Factory (range 10) 4645 | -8/Garrison | Expanded RIF knowledge: Patrol Navigation 4650 | -8/Garrison | Entered Factory 4650 | -7/Factory | Evolved 2 slots: Utility x2 4875 | -7/Factory | Identified exit to Garrison 4875 | -7/Factory | Entered Garrison 4938 | -7/Garrison | Triggered checkpoint 4978 | -7/Garrison | Triggered checkpoint 5017 | -7/Garrison | Destroyed 11 combat bots 5087 | -7/Garrison | Discovered new exit (range 14) 5255 | -7/Garrison | Discovered new exit (range 14) 5391 | -7/Garrison | Lost 3 parts (1n1u1w) 5396 | -7/Garrison | Triggered checkpoint 5405 | -7/Garrison | Discovered new exit (range 14) 5442 | -7/Garrison | Expanded RIF knowledge: Command Fork 5478 | -7/Garrison | Entered Factory 5588 | -7/Factory | Identified exit to Garrison 5588 | -7/Factory | Entered Garrison 5776 | -7/Garrison | Triggered checkpoint 5797 | -7/Garrison | Triggered checkpoint 5826 | -7/Garrison | Destroyed 8 combat bots 5833 | -7/Garrison | Lost 3 parts (3u) 5833 | -7/Garrison | Triggered checkpoint 5864 | -7/Garrison | Destroyed 8 combat bots 5900 | -7/Garrison | Discovered new exit (range 15) 6188 | -7/Garrison | Discovered new exit (range 8) 6316 | -7/Garrison | Discovered new exit (range 9) 6348 | -7/Garrison | Expanded RIF knowledge: Autooverride 6358 | -7/Garrison | Entered Factory 6358 | -6/Factory | Evolved 2 slots: Power x1, Propulsion x1 6626 | -6/Factory | Sucked down chute 6626 | -6/Factory | Entered Waste 6626 | -6/Waste | The area was eerily silent 6637 | -6/Waste | Found Hvy. Insulated Plating 6798 | -6/Waste | Found Damper Plating 7010 | -6/Waste | A Compactor rumbled back to life 7010 | -6/Waste | Spotted C-40 Crusher 7085 | -6/Waste | Destroyed C-40 Crusher 7193 | -6/Waste | Discovered new exit (range 13) 7270 | -6/Waste | Entered Factory 7563 | -6/Factory | Discovered new exit (range 12) 7710 | -6/Factory | Found Launcher Loader 7971 | -6/Factory | Fabricated Gamma Bomb Array (x1) 8857 | -6/Factory | Discovered new exit (range 19) 9022 | -6/Factory | Fabricated Mni. Drone Bay (x1) 9301 | -6/Factory | Identified exit to Garrison 9301 | -6/Factory | Entered Garrison 10180 | -6/Garrison | Triggered checkpoint 10232 | -6/Garrison | Garrison Relay disabled 10334 | -6/Garrison | Triggered checkpoint 10460 | -6/Garrison | Triggered checkpoint 10526 | -6/Garrison | Discovered new exit (range 14) 10636 | -6/Garrison | Triggered checkpoint 10904 | -6/Garrison | Discovered new exit (range 14) 11042 | -6/Garrison | Triggered checkpoint 11082 | -6/Garrison | Garrison Relay disabled 11258 | -6/Garrison | Discovered new exit (range 10) 11289 | -6/Garrison | Expanded RIF knowledge: Autooverride 11296 | -6/Garrison | Entered Factory 11296 | -5/Factory | Evolved 2 slots: Utility x2 11397 | -5/Factory | Build established: Bothacker-Mutant 11522 | -5/Factory | Fabricated Rnf. Quantum Reactor (x2) 11560 | -5/Factory | Sucked down chute 11560 | -5/Factory | Entered Waste 11581 | -5/Waste | Spotted C-40 Crusher 11593 | -5/Waste | Spotted C-40 Crusher 11624 | -5/Waste | Spotted C-40 Crusher 11645 | -5/Waste | Spotted C-40 Crusher 11654 | -5/Waste | Spotted C-40 Crusher 11709 | -5/Waste | Spotted C-40 Crusher 11918 | -5/Waste | Warlord forces began an assault 11958 | -5/Waste | Found Damper Plating 11994 | -5/Waste | Allies destroyed C-40 Crusher 12005 | -5/Waste | Allies destroyed C-40 Crusher 12012 | -5/Waste | Found Damper Plating 12032 | -5/Waste | Allies destroyed C-40 Crusher 12036 | -5/Waste | Allies destroyed C-40 Crusher 12059 | -5/Waste | Found Damper Plating 12086 | -5/Waste | Discovered new exit (range 13) 12404 | -5/Waste | Entered Factory 12404 | -5/Factory | Accompanied by 5 allies 12730 | -5/Factory | Identified exit to Garrison 12730 | -5/Factory | Entered Garrison 12826 | -5/Garrison | Triggered checkpoint 12853 | -5/Garrison | Garrison Relay disabled 12958 | -5/Garrison | Triggered checkpoint 13012 | -5/Garrison | Discovered new exit (range 10) 13035 | -5/Garrison | Expanded RIF knowledge: Program Shield 13086 | -5/Garrison | Triggered checkpoint 13137 | -5/Garrison | Garrison Relay disabled 13193 | -5/Garrison | Entered Factory 13193 | -4/Factory | Evolved 2 slots: Utility x2 13346 | -4/Factory | Build established: Botlord-Mutant 13669 | -4/Factory | Spotted B-86 Titan 13681 | -4/Factory | Identified exit to Garrison 13794 | -4/Factory | Garrison activated, responded to threat 13811 | -4/Factory | Discovered new exit (range 6) 13871 | -4/Factory | Sucked down chute 13871 | -4/Factory | Entered Waste 13872 | -4/Waste | Met a frightened Derelict 13886 | -4/Waste | EMP discharged 13892 | -4/Waste | Spotted C-40 Crusher 13899 | -4/Waste | Spotted C-40 Crusher 13904 | -4/Waste | Spotted C-40 Crusher 13912 | -4/Waste | Spotted C-40 Crusher 13919 | -4/Waste | Spotted C-40 Crusher 13927 | -4/Waste | Spotted C-40 Crusher 13986 | -4/Waste | EMP discharged 14082 | -4/Waste | Discovered new exit (range 10) 14086 | -4/Waste | EMP discharged 14186 | -4/Waste | EMP discharged 14188 | -4/Waste | Build established: Bothacker-Mutant 14286 | -4/Waste | EMP discharged 14386 | -4/Waste | EMP discharged 14426 | -4/Waste | Destroyed C-40 Crusher 14434 | -4/Waste | Found Damper Plating 14486 | -4/Waste | EMP discharged 14551 | -4/Waste | Destroyed C-40 Crusher 14558 | -4/Waste | Found Damper Plating 14586 | -4/Waste | EMP discharged 14589 | -4/Waste | Entered Factory 14723 | -4/Factory | Discovered new exit (range 56) 14914 | -4/Factory | Identified exit to Garrison 14914 | -4/Factory | Entered Garrison 14922 | -4/Garrison | Expanded RIF knowledge: Structural Interface 14958 | -4/Garrison | Garrison Relay disabled 15014 | -4/Garrison | Spotted B-86 Titan 15199 | -4/Garrison | Triggered checkpoint 15231 | -4/Garrison | Destroyed B-86 Titan 15235 | -4/Garrison | Triggered checkpoint 15258 | -4/Garrison | Triggered checkpoint 15325 | -4/Garrison | Build established: Botlord-Mutant 15357 | -4/Garrison | Discovered new exit (range 10) 15418 | -4/Garrison | Triggered checkpoint 15477 | -4/Garrison | Garrison Relay disabled 15638 | -4/Garrison | Discovered new exit (range 12) 15706 | -4/Garrison | Entered Extension 15806 | -4/Extension | Rescued a captive Derelict 15806 | -4/Extension | Rescued a captive Derelict 16187 | -4/Extension | Spotted B-86 Titan 16194 | -4/Extension | Allies destroyed B-86 Titan 16217 | -4/Extension | Spotted B-86 Titan 16228 | -4/Extension | Destroyed B-86 Titan 16498 | -4/Extension | Discovered new exit (range 15) 16500 | -4/Extension | Discovered new exit (range 15) 16609 | -4/Extension | Central database locked down 16610 | -4/Extension | Rescued a captive Derelict 16610 | -4/Extension | Rescued a captive Derelict 16654 | -4/Extension | Rescued a captive Derelict 16962 | -4/Extension | Rescued a captive Derelict 16963 | -4/Extension | Rescued a captive Derelict 17081 | -4/Extension | Rescued a captive Derelict 17081 | -4/Extension | Rescued a captive Derelict 17105 | -4/Extension | Rescued a captive Derelict 17433 | -4/Extension | Rescued A7 17791 | -4/Extension | Entered Cetus 17791 | -4/Cetus | Accompanied by 10 allies (A7) 17796 | -4/Cetus | Acquired a Cetus Manufacturing Module code from A7 17815 | -4/Cetus | Spotted Cetus Guard 17815 | -4/Cetus | Spotted Cetus Guard 17816 | -4/Cetus | Allies destroyed Cetus Guard 17817 | -4/Cetus | Spotted Cetus Guard 17817 | -4/Cetus | Spotted Cetus Guard 17822 | -4/Cetus | Allies destroyed Cetus Guard 17830 | -4/Cetus | Allies destroyed Cetus Guard 17832 | -4/Cetus | Allies destroyed Cetus Guard 17912 | -4/Cetus | Started Cetus Manufacturing Module 17925 | -4/Cetus | Escorted A7 to Cetus Mainframe 17937 | -4/Cetus | Manufactured an Enhanced Grunt 17962 | -4/Cetus | Manufactured an Enhanced Grunt 17977 | -4/Cetus | Central database locked down 17987 | -4/Cetus | Manufactured an Enhanced Grunt 18012 | -4/Cetus | Manufactured an Enhanced Grunt 18037 | -4/Cetus | Manufactured an Enhanced Grunt 18050 | -4/Cetus | Cetus Manufacturing Module disabled 18075 | -4/Cetus | Discovered new exit (range 20) 18114 | -4/Cetus | Spotted Cetus Guard 18115 | -4/Cetus | Spotted Cetus Guard 18118 | -4/Cetus | Spotted Cetus Guard 18118 | -4/Cetus | Spotted Cetus Guard 18122 | -4/Cetus | Allies destroyed Cetus Guard 18131 | -4/Cetus | Allies destroyed Cetus Guard 18135 | -4/Cetus | Allies destroyed Cetus Guard 18140 | -4/Cetus | Allies destroyed Cetus Guard 18142 | -4/Cetus | Discovered new exit (range 16) 18154 | -4/Cetus | Met Revision 17 18162 | -4/Cetus | Destroyed Revision 17 18229 | -4/Cetus | Entered Archives 18229 | -4/Archives | Accompanied by 7 allies (A7) 18234 | -4/Archives | Received a hacking code to weaken MAIN.C 18287 | -4/Archives | Discovered new exit (range 15) 18469 | -4/Archives | Discovered new exit (range 14) 19737 | -4/Archives | Entered Hub_04(d) 19737 | -4/Hub_04(d) | Accompanied by 2 allies 19849 | -4/Hub_04(d) | Found Quantum Capacitor 20142 | -4/Hub_04(d) | Identified exit to Garrison 20183 | -4/Hub_04(d) | Discovered new exit (range 16) 20199 | -4/Hub_04(d) | Network Hub disabled 20258 | -4/Hub_04(d) | Entered Garrison 20268 | -4/Garrison | Expanded RIF knowledge: Autooverride 20326 | -4/Garrison | Triggered checkpoint 20395 | -4/Garrison | Garrison Relay disabled 20560 | -4/Garrison | Triggered checkpoint 20617 | -4/Garrison | Destroyed 8 combat bots 20688 | -4/Garrison | Discovered new exit (range 14) 20928 | -4/Garrison | Garrison Relay disabled 21026 | -4/Garrison | Triggered checkpoint 21259 | -4/Garrison | Entered Research 21259 | -3/Research | Accompanied by 6 allies 21259 | -3/Research | Evolved 2 slots: Utility x2 22092 | -3/Research | Spotted B-86 Titan 22227 | -3/Research | Discovered new exit (range 47) 22304 | -3/Research | Spotted B-86 Titan 22456 | -3/Research | Identified exit to Research 22676 | -3/Research | Destroyed 7 combat bots 22759 | -3/Research | First assault squad dispatched 22806 | -3/Research | Found Gamma Bomb Array 22817 | -3/Research | Found Prototype Device 22829 | -3/Research | System corruption reached 10% 23099 | -3/Research | Identified Exp. Thermal Defense Suite 23166 | -3/Research | Lost 3 parts (1n2u) 23219 | -3/Research | Found Fusion Bomb Launcher 23519 | -3/Research | Entered another Research area 23519 | -2/Research | Evolved 2 slots: Propulsion x1, Weapon x1 23551 | -2/Research | Identified exit to Quarantine 23769 | -2/Research | First assault squad dispatched 23836 | -2/Research | Garrison activated, responded to threat 23983 | -2/Research | Spotted B-90 Cyclops 24131 | -2/Research | Entered Quarantine 24149 | -2/Quarantine | Lost 7 parts (2p1n2u2w) 24358 | -2/Quarantine | Found Alien Artifact 24400 | -2/Quarantine | Cryocooling Duct disabled 24415 | -2/Quarantine | Ambient heat levels rising (+20) 24415 | -2/Quarantine | Non-combat units ordered to evacuate 24738 | -2/Quarantine | Found Alien Artifact 24738 | -2/Quarantine | Identified Subatomic Replicator 25262 | -2/Quarantine | Cryocooling Duct disabled 25277 | -2/Quarantine | Ambient heat levels rising (+20) 25277 | -2/Quarantine | Combat units ordered to evacuate 25377 | -2/Quarantine | Quarantine Guard activated 25651 | -2/Quarantine | Spotted Quarantine Guard 25674 | -2/Quarantine | Destroyed Quarantine Guard 25755 | -2/Quarantine | Spotted Quarantine Guard 25776 | -2/Quarantine | Destroyed Quarantine Guard 25983 | -2/Quarantine | Found Alien Impact Weapon 25990 | -2/Quarantine | Spotted Quarantine Guard 25999 | -2/Quarantine | Spotted Quarantine Guard 26006 | -2/Quarantine | Destroyed Quarantine Guard 26008 | -2/Quarantine | Spotted Quarantine Guard 26010 | -2/Quarantine | Spotted Quarantine Guard 26015 | -2/Quarantine | Destroyed Quarantine Guard 26025 | -2/Quarantine | Destroyed Quarantine Guard 26053 | -2/Quarantine | Destroyed Quarantine Guard 26103 | -2/Quarantine | Spotted Quarantine Guard 26136 | -2/Quarantine | Destroyed Quarantine Guard 26139 | -2/Quarantine | Identified Stasis Generator 26204 | -2/Quarantine | Spotted Quarantine Guard 26217 | -2/Quarantine | Destroyed Quarantine Guard 26226 | -2/Quarantine | Spotted Quarantine Guard 26236 | -2/Quarantine | Destroyed Quarantine Guard 26337 | -2/Quarantine | Discovered new exit (range 10) 26365 | -2/Quarantine | Identified Core Stripper 26396 | -2/Quarantine | Found Alien Slashing Weapon 26396 | -2/Quarantine | Identified Sigix Broadsword 26507 | -2/Quarantine | Spotted Quarantine Guard 26516 | -2/Quarantine | Destroyed Quarantine Guard 26736 | -2/Quarantine | Found Alien Artifact 26768 | -2/Quarantine | Identified Core Reset Matrix 26866 | -2/Quarantine | Repaired Hcp. Storage Unit 26883 | -2/Quarantine | Repaired Hcp. Storage Unit 26897 | -2/Quarantine | Repaired Hcp. Storage Unit 27258 | -2/Quarantine | Spotted Quarantine Guard 27261 | -2/Quarantine | Destroyed Quarantine Guard 27306 | -2/Quarantine | Found Alien Artifact 27409 | -2/Quarantine | Identified Phase Redirector 27528 | -2/Quarantine | Central database locked down 27591 | -2/Quarantine | Spotted Fortress 27606 | -2/Quarantine | Destroyed Fortress 27645 | -2/Quarantine | Found Prototype Reactor 27645 | -2/Quarantine | Identified Vortex Chain Reactor 27650 | -2/Quarantine | Found Vortex Chain Reactor 27682 | -2/Quarantine | Found Prototype Device 27682 | -2/Quarantine | Identified Thermal Barrier 27691 | -2/Quarantine | Found Prototype Device 27691 | -2/Quarantine | Identified Exp. Force Field 27720 | -2/Quarantine | Found Prototype Device 27720 | -2/Quarantine | Identified EM Dispersion Field 27826 | -2/Quarantine | Found Alien Artifact 27827 | -2/Quarantine | Identified Dimensional Node Initializer 27827 | -2/Quarantine | Initialized slip node 27829 | -2/Quarantine | Found Dimensional Node Initializer 27842 | -2/Quarantine | Found Alien Artifact 27847 | -2/Quarantine | Found Alien Artifact 27850 | -2/Quarantine | Found Alien Artifact 27852 | -2/Quarantine | Found Alien Artifact 27970 | -2/Quarantine | Identified Transdimensional Reconstructor 27970 | -2/Quarantine | Identified Hpw. Transdimensional Reconstructor (x3) 28107 | -2/Quarantine | Build established: Hauler-Mutant 28268 | -2/Quarantine | Discovered new exit (range 6) 28268 | -2/Quarantine | Spotted Quarantine Guard 28277 | -2/Quarantine | Entered Section 7 28310 | -2/Section 7 | Found Alien Artifact 28343 | -2/Section 7 | Identified Integrated Reactor 28432 | -2/Section 7 | Found Integrated Reactor 28433 | -2/Section 7 | Installed Integrated Reactor, increased core energy generation (+10) 28525 | -2/Section 7 | Spotted B-90 Cyclops 28718 | -2/Section 7 | Found Alien Artifact 28842 | -2/Section 7 | Discovered new exit (range 8) 28844 | -2/Section 7 | Destroyed 8 combat bots 28848 | -2/Section 7 | Spotted S7 Guard 28872 | -2/Section 7 | Destroyed S7 Guard 28894 | -2/Section 7 | Found Prototype Protection 28894 | -2/Section 7 | Identified Hvy. Regenerative Plating 28899 | -2/Section 7 | Found Alien Artifact 29063 | -2/Section 7 | Spotted Alpha 7 29066 | -2/Section 7 | Warped through subspace 29109 | -2/Section 7 | Found Transdimensional Reconstructor 29115 | -2/Section 7 | Found Transdimensional Reconstructor 29117 | -2/Section 7 | Found Hpw. Transdimensional Reconstructor 29128 | -2/Section 7 | Found Alien Artifact 29128 | -2/Section 7 | Identified Matter Drive 29143 | -2/Section 7 | Found Matter Drive 29251 | -2/Section 7 | Found Alien Energy Gun 29251 | -2/Section 7 | Identified Sigix Quantum Sheargun 29256 | -2/Section 7 | Found Sigix Quantum Sheargun 29698 | -2/Section 7 | Found Sigix Quantum Sheargun 29774 | -2/Section 7 | Spotted Executioner 29778 | -2/Section 7 | Spotted Executioner 29788 | -2/Section 7 | Destroyed Executioner 29825 | -2/Section 7 | Destroyed Executioner 29841 | -2/Section 7 | Found Prototype Processor 29841 | -2/Section 7 | Identified Exp. Targeting Computer 29851 | -2/Section 7 | Found Adv. Kinecellerator 29975 | -2/Section 7 | Spotted B-99 Colossus 30069 | -2/Section 7 | Found Alien Artifact 30069 | -2/Section 7 | Identified LRC Insulator 30069 | -2/Section 7 | Installed LRC Insulator, gained EM resistance (25) 30078 | -2/Section 7 | Found Alien Artifact 30078 | -2/Section 7 | Identified LRC Armor 30078 | -2/Section 7 | Installed LRC Armor, increased core integrity (+250) 30095 | -2/Section 7 | Central database locked down 30142 | -2/Section 7 | Found Integrated Reactor 30142 | -2/Section 7 | Installed Integrated Reactor, increased core energy generation (+10) 30277 | -2/Section 7 | Spotted Alpha 7 30279 | -2/Section 7 | Warped through subspace 30359 | -2/Section 7 | Spotted Executioner 30360 | -2/Section 7 | Spotted Executioner 30385 | -2/Section 7 | Destroyed Executioner 30424 | -2/Section 7 | Destroyed Executioner 30435 | -2/Section 7 | Found Prototype Processor 30435 | -2/Section 7 | Identified Exp. Core Analyzer 30527 | -2/Section 7 | Spotted S7 Guard 30538 | -2/Section 7 | Found Alien Artifact 30574 | -2/Section 7 | Destroyed S7 Guard 30644 | -2/Section 7 | Spotted S7 Guard 30657 | -2/Section 7 | Found Alien Artifact 30995 | -2/Section 7 | Found Spectral Analyzer 31026 | -2/Section 7 | Identified Core Regenerator 31026 | -2/Section 7 | Identified Integrated Dissipator 31026 | -2/Section 7 | Warped through subspace 31081 | -2/Section 7 | Identified Integrated Singularity Reactor 31081 | -2/Section 7 | Identified Core Membrane 31081 | -2/Section 7 | Installed Core Membrane, gained immunity to corruption 31082 | -2/Section 7 | Installed Integrated Reactor, increased core energy generation (+10) 31083 | -2/Section 7 | Installed Integrated Dissipator, increased core heat dissipation (+20) 31228 | -2/Section 7 | Entered Access 31228 | -1/Access | Evolved 2 slots: Weapon x2 31229 | -1/Access | Used Subatomic Replicator to replicate Integrated Singularity Reactor 31230 | -1/Access | Installed Integrated Singularity Reactor, increased core energy generation (+20) 31234 | -1/Access | Installed Integrated Singularity Reactor, increased core energy generation (+20) 31470 | -1/Access | Identified exit to Command 31815 | -1/Access | Entered Command 31969 | -1/Command | Spotted M Guard 31971 | -1/Command | Spotted M Guard 31971 | -1/Command | Spotted Combat Programmer 31972 | -1/Command | Spotted Combat Programmer 32027 | -1/Command | Destroyed M Guard 32043 | -1/Command | Destroyed M Guard 32055 | -1/Command | Destroyed Combat Programmer 32059 | -1/Command | Destroyed Combat Programmer 32059 | -1/Command | All MAIN.C guards destroyed 32065 | -1/Command | First assault squad dispatched 32092 | -1/Command | Found Adv. Micro-nuke Launcher 32105 | -1/Command | Found Prototype Device 32105 | -1/Command | Identified AEGIS Remote Shield 32112 | -1/Command | Found Hvy. Regenerative Plating 32128 | -1/Command | Found Zero-point Reactor 32132 | -1/Command | Found Hvy. Regenerative Plating 32135 | -1/Command | Found Zero-point Reactor 32138 | -1/Command | Found Thermal Barrier 32145 | -1/Command | Found AEGIS Remote Shield 32202 | -1/Command | Met MAIN.C 32210 | -1/Command | 0b10 Conduit disabled 32563 | -1/Command | Found Prototype Ballistic Gun 32563 | -1/Command | Identified Multirail 32581 | -1/Command | Found Exp. Armor Integrity Analyzer 32585 | -1/Command | Found Prototype Device 32585 | -1/Command | Identified Adv. Particle Accelerator 32662 | -1/Command | Discovered new exit (range 15) 32730 | -1/Command | Hacked MAIN.C using A7's code 32872 | -1/Command | Destroyed MAIN.C Shell 32875 | -1/Command | MAIN.C activated Command garrisons 32891 | -1/Command | Destroyed MAIN.C 32915 | -1/Command | Found Prototype Protection 32919 | -1/Command | Found Prototype Processor 32924 | -1/Command | Found Beam Splitter 32927 | -1/Command | Found Exp. Targeting Computer 32954 | -1/Command | Found Prototype Ballistic Cannon 32957 | -1/Command | Found Prototype Protection 33056 | -1/Command | Destroyed 8 combat bots 33181 | -1/Command | Found Exp. Armor Integrity Analyzer 33202 | -1/Command | Found Exp. Focal Shield 33205 | -1/Command | Found EM Dispersion Field 33209 | -1/Command | Found Zero-point Reactor 33212 | -1/Command | Found Vortex Chain Reactor 33418 | -1/Command | Identified Exp. Powered Armor (x2) 33419 | -1/Command | Identified Exp. Target Analyzer 33563 | -1/Command | Used Core Reset Matrix 33567 | -1/Command | Sensed 4 artifacts in vicinity 33712 | -1/Command | Identified Omega Cannon 33879 | -1/Command | Build established: Alien-Tank 33976 | -1/Command | Found Unknown Device 33993 | -1/Command | Identified Antimissile System 34097 | -1/Command | Found Unknown Device 34118 | -1/Command | Identified Adv. Force Booster 34743 | -1/Command | Spotted B-99 Colossus 34751 | -1/Command | Destroyed B-99 Colossus 35157 | -1/Command | Spotted B-99 Colossus 35178 | -1/Command | Destroyed B-99 Colossus 35464 | -1/Command | Build established: Alien-Gunner 35494 | -1/Command | Found Multirail 35497 | -1/Command | Found Exp. Target Analyzer 35889 | -1/Command | Discovered new exit (range 10) 36272 | -1/Command | Used Core Regenerator, restored core integrity (+280) 36653 | -1/Command | Build established: Alien-Tank 36666 | -1/Command | Warped through subspace to slip node 36666 | -1/Command | Discovered new exit (range 5) 36675 | -1/Command | Entered Access_0 36676 | -1/Access_0 | Sensed 3 artifacts in vicinity 36679 | -1/Access_0 | Met Architect 36686 | -1/Access_0 | Architect warped through subspace 36722 | -1/Access_0 | Architect warped through subspace 36776 | -1/Access_0 | Architect warped through subspace 36813 | -1/Access_0 | Architect warped through subspace 36819 | -1/Access_0 | Found Prototype Device 36819 | -1/Access_0 | Identified Exp. Phase Shifter 36857 | -1/Access_0 | Architect warped through subspace 36869 | -1/Access_0 | Found Exp. Targeting Computer 36887 | -1/Access_0 | Found Exp. Powered Armor 36912 | -1/Access_0 | Architect warped through subspace 36921 | -1/Access_0 | Found Exp. Powered Armor 36937 | -1/Access_0 | Found Prototype Device 36937 | -1/Access_0 | Identified Desublimator 36946 | -1/Access_0 | Subspace Access Node disabled 36955 | -1/Access_0 | Architect warped through subspace 36971 | -1/Access_0 | Found Exp. Targeting Computer 36978 | -1/Access_0 | Found Prototype Device 36979 | -1/Access_0 | Identified Exp. Weapon Cycler 36985 | -1/Access_0 | Found Exp. Phase Shifter 36995 | -1/Access_0 | Architect warped through subspace 37027 | -1/Access_0 | Architect warped through subspace 37061 | -1/Access_0 | Subspace Access Node disabled 37073 | -1/Access_0 | Architect warped through subspace 37097 | -1/Access_0 | Architect warped through subspace 37114 | -1/Access_0 | Architect warped through subspace 37151 | -1/Access_0 | Architect warped through subspace 37183 | -1/Access_0 | Architect warped through subspace 37192 | -1/Access_0 | Architect warped through subspace 37200 | -1/Access_0 | Architect warped through subspace 37222 | -1/Access_0 | Subspace Access Node disabled 37230 | -1/Access_0 | Architect warped through subspace 37259 | -1/Access_0 | Architect warped through subspace 37268 | -1/Access_0 | Build established: Alien-Mutant 37280 | -1/Access_0 | Architect warped through subspace 37290 | -1/Access_0 | A6 warped into view 37309 | -1/Access_0 | Destroyed A6 37314 | -1/Access_0 | Architect warped through subspace 37331 | -1/Access_0 | Architect warped through subspace 37345 | -1/Access_0 | Architect warped through subspace 37361 | -1/Access_0 | Architect warped through subspace 37378 | -1/Access_0 | Architect warped through subspace 37389 | -1/Access_0 | Architect warped through subspace 37399 | -1/Access_0 | Architect warped through subspace 37408 | -1/Access_0 | Architect warped through subspace 37420 | -1/Access_0 | Subspace Access Node disabled 37468 | -1/Access_0 | Found Prototype Protection 37468 | -1/Access_0 | Identified Centrium Linked Plating 37582 | -1/Access_0 | Lost 3 parts (1u2w) 37858 | -1/Access_0 | Destroyed A8 37878 | -1/Access_0 | Build established: Scavenger-Tank 37936 | -1/Access_0 | Found Prototype Protection 37936 | -1/Access_0 | Identified Centrium Heavy Armor Plating 38040 | -1/Access_0 | A5 warped into view 38067 | -1/Access_0 | Destroyed A5 38225 | -1/Access_0 | Build established: Alien-Tank 38308 | -1/Access_0 | Found Prototype Processor 38308 | -1/Access_0 | Identified Spectral Analyzer 38312 | -1/Access_0 | Found Prototype Device 38312 | -1/Access_0 | Identified EM Disruption Field 38466 | -1/Access_0 | Found Hpw. Transdimensional Reconstructor 38609 | -1/Access_0 | A4 warped into view 38638 | -1/Access_0 | Destroyed A4 39126 | -1/Access_0 | Destroyed A2 39130 | -1/Access_0 | Found Prototype Device 39130 | -1/Access_0 | Identified Exp. Thermal Defense Suite 39137 | -1/Access_0 | Extracted Singularity Gate Test 138-C access codes from A2's data core 39140 | -1/Access_0 | Found Exp. Phase Shifter 39202 | -1/Access_0 | Singularity Gate disabled 39733 | -1/Access_0 | Destroyed Architect 39916 | -1/Access_0 | A3 warped into view 39934 | -1/Access_0 | Destroyed A3 39944 | -1/Access_0 | Warped through subspace to slip node 39944 | -1/Access_0 | Discovered new exit (range 8) 39955 | *** | Heading to fleet! Last Messages --------------- 39925_ Slug penetrates A3. 39927_ Quantum Shear penetrates A3. 39927_ A3 Unknown Reactor severed. 39927_ Slug penetrates A3. 39927_ Quantum Shear penetrates A3. 39927_ Slug penetrates A3. 39930_ Quantum Shear penetrates A3. 39930_ Slug penetrates A3. 39930_ Quantum Shear penetrates A3. 39930_ A3 Unknown Device severed. 39932_ Quantum Shear penetrates A3. 39932_ Slug penetrates A3. 39934_ Quantum Shear penetrates A3. 39934_ Slug penetrates A3. 39934_ A3: "How even..." 39934_ A3 destroyed. 39934_ Slug penetrates Earth. 39942_ Ended siege mode. 39944_ Warped through subspace, drawn to slip node. 39944_ EXIT=FOUND Map ----- +----------------------------------------------------+ | | | | | | | | | | | | | | | | | | | | | | | | | | | | | | | | | ?????????????????????????????????????????????????? | | ?????????????????????????????????????????????????? | | ?????????????????????????????????????????????????? | | ?????????????????????????????????????????????????? | | ?????????????????????????????????????????????????? | | ?????????????????????????????????????????????????? | | ????????????????????????###??????????????????????? | | ???????????????????????## ##?????????????????????? | | ???????????????????????# #?????????????????????? | | ???????????????????????# @ #?????????????????????? | | ??????????????????????## #?????????????????????? | | ??????????????????????# #?????????????????????? | | ??????????????????????# ##?????????????????????? | | ??????????????????????## #?????????????????????? | | ??????????????????????# #?????????????????????? | | ??????????????????????# ##?????????????????????? | | ??????????????????????# < #?????????????????????? | | ??????????????????????# ##?????????????????????? | | ??????????????????????## #??????????????????????? | | ???????????????????????####??????????????????????? | | ?????????????????????????????????????????????????? | | ?????????????????????????????????????????????????? | | ?????????????????????????????????????????????????? | | ?????????????????????????????????????????????????? | | ?????????????????????????????????????????????????? | | ?????????????????????????????????????????????????? | | ?????????????????????????????????????????????????? | | ?????????????????????????????????????????????????? | | ?????????????????????????????????????????????????? | | ?????????????????????????????????????????????????? | | ?????????????????????????????????????????????????? | | ?????????????????????????????????????????????????? | | ?????????????????????????????????????????????????? | | ?????????????????????????????????????????????????? | +----------------------------------------------------+ Best States ------------- Heat Dissipation 162 Coolant Potential 120 Energy Generation 127 Energy Capacity 1700 Matter Stores 747 Matter Capacity 800 Sight Range 24 Terrain Scan Range 16 Terrain Scan Density 60 Jamming Range 16 Additional Mass Support 27 Armor Coverage 4200 Resistance: KI 30 Resistance: TH 75 Resistance: EM 100 Propulsion Shielding 66 Weapon Shielding 90 Weapon Cycling 30 Phase Shifting 20 Evasion (%) 60 Targeting Accuracy 24 Launcher Accuracy 20 Target Analysis 12 Armor Integrity Analysis 90 Recoil Reduction 4 Particle Charging 50 Kinecelleration 50 Offensive Hacking 48 Defensive Hacking 12 Relay Coupler Types 133 Relay Coupler Value 5 Item Schematics ----------------- None Robot Schematics ------------------ None Fabricated ------------ Gamma Bomb Array | x1 | -6/Factory | Preloaded Mni. Drone Bay | x1 | -6/Factory | Preloaded Rnf. Quantum Reactor | x2 | -5/Factory | Preloaded Alien Tech Used ----------------- Subatomic Replicator Stasis Generator Sigix Broadsword Core Stripper Dimensional Node Initializer Integrated Reactor High-powered Transdimensional Reconstructor Matter Drive Sigix Quantum Sheargun LRC Insulator LRC Armor Transdimensional Reconstructor Core Membrane Integrated Dissipator Integrated Singularity Reactor Core Reset Matrix Core Regenerator Phase Redirector Achievements -------------- None Challenges ------------ None Game ------ Seed TrapActuatorStorage Manual? 0 Play Time 05:28:28 Cumulative 1726.5 hours Start 2020.10.24 @ 03:35:50 End 2020.10.24 @ 22:49:40 Sessions 9 Manual Loads 0 Difficulty Rogue Special Mode None Game No. 2497 Rogue 2490 Adventurer 0 Explorer 7 Win Type 2 Total 167 Types 41/23/65/3/3/5/24/2/1 Lore% 99 Gallery% 99 Achievement% 100 Wizard Run 0 Options --------- ASCII 0 Keyboard 1 Movement Numpad Keybinds 1 Fullscreen 1 Font 18/SmallcapsGlow Map View 76x50 Tactical HUD 1 Map Filters NONE Filters NONE Steam 1 RUN: 4c03a2a0-1234-47d7-8127-5d39b319f1e4